Workbook

Sheet Workbook Instructions and Notes
B1: Rental AHP Application Financial Workbook
B2: =Targeting!A2 -> Version 5.2 Updated 1/27/22
A4: General Instructions and Notes
A5: 1. | B5: All shaded cells are protected and cannot be altered.
A6: 2. | B6: Complete all worksheets sequentially.
A7: 3. | B7: Information provided in the application must be consistent across all submitted materials. Applications with submission errors, omissions, or inconsistencies that result in an incomplete analysis of the application may not be accepted, at the Bank's discretion.
A8: Targeting Worksheet
A9: 1. | B9: Enter the annual 50% (very-low) AMI, adjusted for family size, based on the HUD income limit guidelines.
A10: 2. | B10: Attach a copy of the relevant HUD Income Limits page showing the income data for this project.
A11: 3. | B11: If applicable, indicate which units are reserved for Homeless or Special Needs. Numbers of units reserved must be consistent with the Homeless or Special Needs scoring categories to receive scoring credit. Only input the units for the category under which the project is seeking points, either Homeless or Special Needs, not both.
A12: 4. | B12: For transitional housing, enter the number of projected households as the number of units.
A13: 5. | B13: Under bedroom size, for studios, select “0” as the number of bedrooms.
A14: 6. | B14: Do not input operating subsidies as rental subsidies (see 15-Year Operating Pro Forma).
A15: 7. | B15: Always note non-income restricted units and manager's units.
A16: 8. | B16: Enter the scheduled rent and rental subsidy for each type of unit. AHP guidelines require that the rent paid by each household (excluding utilities) not exceed 30% of the targeted income for the unit. The farthest column to the right shows if a unit passes or fails this “30% Rent Test.”
A17: 9. | B17: For occupied rental projects, households must be income-qualified to meet the AHP targeting commitments at one of two points in time: • Upon initial occupancy after completion of acquisition or rehab for projects with an approved relocation plan, or • At application for projects without an approved relocation plan. This means that grandfathering-in households who were income-qualified at a move-in date prior to the AHP application is not allowed. For households whose incomes have increased during their tenure at the project, and now exceed the unit's original targeting designation, targeting commitments in the AHP application should reflect current household income. For example, the targeting for a unit where the household was income-qualified for a 50% AMI unit at move-in in 2015 who is now earning 80% AMI should be set at 80% AMI, not 50% AMI.
A18: Sources and Uses Worksheet
A19: 1. | B19: Enter the project's total residential square footage which may include common areas and residential podium parking.
A20: 2. | B20: Enter tax credit sales price, if applicable.
A21: 3. | B21: Select construction type, either "New Construction" and/or "Rehab." Also select the building type, "Apartments,” "Single Family Homes,” or "Townhomes."
A22: 4. | B22: Do not include non-cash "costs," that are both a use and a source, e.g. volunteer labor, pro-bono services, or expenses to be reimbursed.
A23: 5. | B23: Ensure purchase price/acquisition cost is consistent with readiness and donation sections in the AHP Application and that documentation is provided.
A24: 6. | B24: If the property owner, lessee, or sponsor acquires the project property from a party, affiliated in any way with the property owner, lessee, sponsor, or any other persons or entities involved in the project, in a non-arm’s length transaction, the Bank will consider such acquisition to be a related party transaction. When evaluating related party transactions, the Bank may consider any net cash gain from the transaction as excess sources of funds, unless the gain is: 1) contributed to the project as owner equity, 2) provided to the project as carry-back financing, or 3) used to retire existing debt on the property.
A25: 7. | B25: For rehabilitation of existing affordable housing projects, not involving the acquisition of property, acquisition costs (i.e., those costs reflected on the Sources and Uses Worksheet) will not be included in the total development cost for the purpose of determining the allowable developer fee.
A26: 8. | B26: Capitalized reserves (such as operating, replacement, transition, or social service reserves) must be paid for by sources other than AHP subsidy or conventional financing.
A27: 9. | B27: If capitalized partnership management, asset management, and/or investor service fee reserves are included in the budget, provide an explanation and third-party documentation justifying why the capitalized fees are required. Excessive and/or unnecessary reserves may indicate that the project does not demonstrate a need for the AHP award. The Bank, at its discretion, will determine whether the reserves are acceptable and appear necessary for project feasibility.
A28: 10. | B28: Include all expenses related to constructing the project's commercial space in the total commercial development costs line item in row 93, if applicable.
A29: 11. | B29: Be sure to indicate all financing details, hard, soft, rates etc., of all permanent debt. The spreadsheet fully amortizes all debt. If necessary, alter worksheet columns to properly reflect simple interest or interest only payments. If financing is soft debt, loan term cells will be grayed out and details do not need to be included.
A30: 12. | B30: Hard debt is defined as contractually obligated debt requiring repayment from project operating cash flow, excluding residual receipts-based loans and soft debt fee payments.
A31: 13. | B31: The Annual Debt Service calculation is editable in the last column to allow for interest-only debt payments or other mandatory fee payments to be added to total debt service if needed.
A32: 14. | B32: To ensure consistent and reasonable rate assumptions, interest rates and spreads should either match funding commitment documentation or be set in accordance with the Interest Rate Assumptions Guidelines for sources that are uncommitted.
A33: 15. | B33: Indicate whether funds have been approved or not approved at the bottom of the worksheet.
A34: 16. | B34: Documentation of approved sources of financing must be provided.
A35: Sources of Funds Summary Worksheet
A36: 1. | B36: The worksheet collects data required by the Federal Housing Finance Agency. Select which sources are applicable to your project.
A37: 2. | B37: Include only permanent financing sources; exclude construction and bridge financing.
A38: 3. | B38: For HUD, USDA, and VA financing, select "Other Federal Housing Programs."
A39: 4. | B39: If a source does not fall clearly within the listed categories, select “Other.”
A40: 15-Year Operating Pro Forma Worksheet
A41: 1. | B41: All costs except for the replacement reserves trend upward. All unshaded cells may be edited.
A42: 2. | B42: Indicate if the project is receiving project-based rental subsidy and the status of the rental subsidy commitment, if applicable. Submit approval letter or rental subsidy agreement with Evidence of Committed Financing documentation.
A43: 3. | B43: Three lines are included for "Other" expenses. Provide details for these "Other" expenses.
A44: 4. | B44: Enter residual receipts payments, any asset or partnership management fees, or deferred fees paid from cash flow on the appropriate lines. Partnership and asset management fees should be shown as residual receipts payments unless documentation is provided showing that these fees are considered by other funders to be an operating expense.
A45: 5. | B45: Adjust debt service if loan payments change during the 15-year retention period.
A46: 6. | B46: Social service costs cannot be included as an operating expense.
A47: 15-Year Commercial Operating Pro Forma Worksheet
A48: 1. | B48: Complete this worksheet if the project includes income-generating commercial space.
A49: 2. | B49: If your project has permanent debt and the permanent loan has already been underwritten, indicate whether the lender included commercial income in their underwriting and sizing of the permanent loan.
A50: 3. | B50: Indicate whether the commercial lease will be triple net (NNN).
A51: 4. | B51: Enter estimated commercial rents from all potential commercial tenants. If the commercial space will be master leased, enter the estimated amount of the master lease payments.
A52: 5. | B52: Enter all commercial expenses in the lines provided. Three lines are included for “Other” expenses. Provide details for these “Other” expenses.
A53: 6. | B53: If hard debt was used to pay for commercial development costs, include the amount of debt service that the commercial portion of the building will carry.
A54: 7 | B54: Total effective commercial gross income and total commercial expenses will automatically populate in the 15-year Operating Pro Forma worksheet based on what you enter in the Commercial Operating Pro Forma.
A55: Promotion of Empowerment Budget Worksheet
A56: 1. | B56: This worksheet ties to the scoring of promotion of empowerment. No empowerment points will be awarded if this is not filled out.
A57: 2. | B57: Include the source(s) of revenue that will be used to pay for resident services described in the promotion of empowerment section of the application.
A58: 3. | B58: Include all expenses related to these services.
A59: 4. | B59: Total revenue minus total expenses should equal zero.
A60: Benchmarks Worksheet
A61: 1. | B61: Provide detailed explanations and supporting documentation for all benchmark deviations (e.g. requirements of other funding sources). Except for interest rate assumptions, benchmark deviations are indicated by “No” in Column E. Deviation explanations must be quantifiable in relation to the amount the benchmark is exceeded. Supporting documentation from a third party is required for the Construction Cost per Square Foot, Capitalized Replacement Reserve, and Capitalized Operating Reserve benchmark deviations, and is preferred for all other benchmark deviations.
A62: Targeting Self-Score Worksheet
A63: 1. | B63: Enter AMI target(s) other than 50% to determine the project’s Targeting score.
A64: AHP Application Comparison Worksheet
A65: 1. | B65: After completing all other worksheets, press the “Run Comparison Now” button. A new window will open on your screen. Find the project’s AHP Application, select that file, and press “Open.” (Make sure macros are enabled in the workbook).
A66: 2. | B66: If there are any “No’s” in the “Match” column, review and edit the responses on the application and financial workbook to ensure consistent data between the two documents.

Sheet Targeting
A1: Rental Projects: Targeting
A2: Version 5.2 Updated 1/27/22
A5: Project Name | H5: MSA/ PMSA | M5: State
H6: County | M6: Zip Code
A10: 2022 (if unavailable, use 2021) | B10: Household size | E10: 1 Person | F10: 2 Person | G10: 3 Person | H10: 4 Person | I10: 5 Person | J10: 6 person | K10: 7 Person | L10: 8 Person
B11: 50% AMI (HUD Very Low)
B12: 100% Area Median Income | E12: =E11*2 -> 0 | F12: =F11*2 -> 0 | G12: 0 | H12: 0 | I12: =I11*2 -> 0 | J12: 0 | K12: 0 | L12: 0
B13: Half-person | E13: =IF(E12="","",IF(E12<>0,AVERAGEA(E12:F12),0)) ->  | F13: =IF(F12="","",IF(F12<>0,AVERAGEA(F12:G12),0)) ->  | I13: =IF(I12="","",IF(I12<>0,AVERAGEA(I12:J12),0)) -> 
A15: Number of Units | B15: Homeless | C15: Special Needs | E15: Bedrooms per Unit
D16: Weighted | F16: Assumed | G16: Target | H16: AMI | I16: Target | J16: 0.3 | K16: Total Rent | L16: Rental | M16: Rent | N16: 30% Rent
D17: Average | F17: Occupancy | G17: AMI % | H17: Adjusted for | I17: Income | J17: Rent | K17: Received | L17: Subsidy | M17: Paid by | N17: Test
D18: Calculation | F18: per Unit | H18: Family Size | I18: for Unit | J18: Cap | K18: for Unit | M18: Household | N18: Pass/Fail
F19: (1.5 persons/bedroom) | P19: Rent | Q19: 1/2 Person | R19: VLI Units | S19: 2nd Line | T19: 3rd Line | U19: 4th Line | V19: 5th Line | W19: 6th Line | X19: 7th Line | AA19: Homeless | AB19: Special Needs | AC19: 3+ Br Units | AE19: Unit Subs | AF19: Net Rent
D20: =A20*E20 -> 0 | F20: =IF(A20="","",IF(A20>0,IF(E20=0,1,(E20*1.5)))) ->  | H20: =IF(F20=1,$E$12,IF(F20=2,$F$12,IF(F20=3,$G$12,IF(F20=4,$H$12,IF(F20=5,$I$12,IF(F20=6,$J$12,IF(F20=7,$K$12,IF(F20=8,$L$12,Q20)))))))) -> 0 | I20: =IF(G20="","",(G20*H20)) ->  | J20: =IF(I20="","",+I20/12*0.3) ->  | M20: =IF($K20="","",K20-L20) ->  | N20: =IF(A20<>"",IF(K20>=0,IF((K20-L20)>J20,"Fail","Pass"))," ") ->  | P20: =+K20*A20 -> 0 | Q20: =IF(F20=1.5,$E$13,IF(F20=2.5,$F$13,IF(F20=3.5,$G$13,IF(F20=4.5,$H$13,IF(F20=5.5,$I$13,IF(F20=6.5,$J$13,IF(F20=7.5,$K$13,0))))))) -> 0 | R20: =IF(AND(G20>0,G20<=0.5),A20,0) -> 0 | S20: =IF(G20='Targeting Self-Score'!$D$6,A20,0) -> 0 | T20: =IF(G20='Targeting Self-Score'!$D$7,A20,0) -> 0 | U20: =IF(G20='Targeting Self-Score'!$D$8,Targeting!A20,0) -> 0 | V20: =IF(G20='Targeting Self-Score'!$D$9,Targeting!A20,0) -> 0 | W20: =IF(G20='Targeting Self-Score'!$D$10,Targeting!A20,0) -> 0 | X20: =IF(G20='Targeting Self-Score'!$D$11,Targeting!A20,0) -> 0 | Y20: =(E20*2)+1 -> 1 | AA20: =IF($B20="No","",IF($B20="","",$A20)) ->  | AB20: =IF($C20="",0,$A20) -> 0 | AC20: =IF(E20>=3,A20,0) -> 0 | AE20: =(A20*L20)*12 -> 0 | AF20: =M20*12*A20 -> 0 | AH20: 0
D21: 0 | F21: =IF(A21="","",IF(A21>0,IF(E21=0,1,(E21*1.5)))) ->  | H21: =IF(F21=1,$E$12,IF(F21=2,$F$12,IF(F21=3,$G$12,IF(F21=4,$H$12,IF(F21=5,$I$12,IF(F21=6,$J$12,IF(F21=7,$K$12,IF(F21=8,$L$12,Q21)))))))) -> 0 | I21: =IF(G21="","",(G21*H21)) ->  | J21: =IF(I21="","",+I21/12*0.3) ->  | M21: =IF($K21="","",K21-L21) ->  | N21: =IF(A21<>"",IF(K21>=0,IF((K21-L21)>J21,"Fail","Pass"))," ") ->  | P21: 0 | Q21: =IF(F21=1.5,$E$13,IF(F21=2.5,$F$13,IF(F21=3.5,$G$13,IF(F21=4.5,$H$13,IF(F21=5.5,$I$13,IF(F21=6.5,$J$13,IF(F21=7.5,$K$13,0))))))) -> 0 | R21: =IF(AND(G21>0,G21<=0.5),A21,0) -> 0 | S21: =IF(G21='Targeting Self-Score'!$D$6,A21,0) -> 0 | T21: =IF(G21='Targeting Self-Score'!$D$7,A21,0) -> 0 | U21: =IF(G21='Targeting Self-Score'!$D$8,Targeting!A21,0) -> 0 | V21: =IF(G21='Targeting Self-Score'!$D$9,Targeting!A21,0) -> 0 | W21: =IF(G21='Targeting Self-Score'!$D$10,Targeting!A21,0) -> 0 | X21: =IF(G21='Targeting Self-Score'!$D$11,Targeting!A21,0) -> 0 | Y21: 1 | AA21: =IF($B21="No","",IF($B21="","",$A21)) ->  | AB21: =IF($C21="",0,$A21) -> 0 | AC21: 0 | AE21: =(A21*L21)*12 -> 0 | AF21: 0 | AH21: 1
D22: 0 | H22: =IF(F22=1,$E$12,IF(F22=2,$F$12,IF(F22=3,$G$12,IF(F22=4,$H$12,IF(F22=5,$I$12,IF(F22=6,$J$12,IF(F22=7,$K$12,IF(F22=8,$L$12,Q22)))))))) -> 0 | M22: =IF($K22="","",K22-L22) ->  | P22: 0 | Q22: 0 | R22: 0 | S22: =IF(G22='Targeting Self-Score'!$D$6,A22,0) -> 0 | T22: =IF(G22='Targeting Self-Score'!$D$7,A22,0) -> 0 | U22: =IF(G22='Targeting Self-Score'!$D$8,Targeting!A22,0) -> 0 | V22: =IF(G22='Targeting Self-Score'!$D$9,Targeting!A22,0) -> 0 | W22: =IF(G22='Targeting Self-Score'!$D$10,Targeting!A22,0) -> 0 | X22: =IF(G22='Targeting Self-Score'!$D$11,Targeting!A22,0) -> 0 | Y22: 1 | AB22: 0 | AC22: 0 | AE22: 0 | AF22: 0 | AH22: 2
D23: 0 | H23: 0 | P23: 0 | Q23: 0 | R23: 0 | S23: =IF(G23='Targeting Self-Score'!$D$6,A23,0) -> 0 | T23: =IF(G23='Targeting Self-Score'!$D$7,A23,0) -> 0 | U23: =IF(G23='Targeting Self-Score'!$D$8,Targeting!A23,0) -> 0 | V23: =IF(G23='Targeting Self-Score'!$D$9,Targeting!A23,0) -> 0 | W23: =IF(G23='Targeting Self-Score'!$D$10,Targeting!A23,0) -> 0 | X23: =IF(G23='Targeting Self-Score'!$D$11,Targeting!A23,0) -> 0 | Y23: 1 | AB23: 0 | AC23: 0 | AE23: 0 | AF23: 0 | AH23: 3
D24: =A24*E24 -> 0 | H24: 0 | P24: 0 | Q24: 0 | R24: 0 | S24: =IF(G24='Targeting Self-Score'!$D$6,A24,0) -> 0 | T24: =IF(G24='Targeting Self-Score'!$D$7,A24,0) -> 0 | U24: =IF(G24='Targeting Self-Score'!$D$8,Targeting!A24,0) -> 0 | V24: =IF(G24='Targeting Self-Score'!$D$9,Targeting!A24,0) -> 0 | W24: =IF(G24='Targeting Self-Score'!$D$10,Targeting!A24,0) -> 0 | X24: =IF(G24='Targeting Self-Score'!$D$11,Targeting!A24,0) -> 0 | Y24: 1 | AB24: 0 | AC24: 0 | AE24: 0 | AF24: 0 | AH24: 4
D25: 0 | H25: 0 | P25: 0 | Q25: 0 | R25: 0 | S25: =IF(G25='Targeting Self-Score'!$D$6,A25,0) -> 0 | T25: =IF(G25='Targeting Self-Score'!$D$7,A25,0) -> 0 | U25: =IF(G25='Targeting Self-Score'!$D$8,Targeting!A25,0) -> 0 | V25: =IF(G25='Targeting Self-Score'!$D$9,Targeting!A25,0) -> 0 | W25: =IF(G25='Targeting Self-Score'!$D$10,Targeting!A25,0) -> 0 | X25: =IF(G25='Targeting Self-Score'!$D$11,Targeting!A25,0) -> 0 | Y25: 1 | AB25: 0 | AC25: 0 | AE25: 0 | AF25: 0 | AH25: 5
D26: 0 | H26: 0 | P26: 0 | Q26: 0 | R26: 0 | S26: =IF(G26='Targeting Self-Score'!$D$6,A26,0) -> 0 | T26: =IF(G26='Targeting Self-Score'!$D$7,A26,0) -> 0 | U26: =IF(G26='Targeting Self-Score'!$D$8,Targeting!A26,0) -> 0 | V26: =IF(G26='Targeting Self-Score'!$D$9,Targeting!A26,0) -> 0 | W26: =IF(G26='Targeting Self-Score'!$D$10,Targeting!A26,0) -> 0 | X26: =IF(G26='Targeting Self-Score'!$D$11,Targeting!A26,0) -> 0 | Y26: 1 | AB26: 0 | AC26: 0 | AE26: 0 | AF26: 0
D27: 0 | H27: 0 | P27: 0 | Q27: 0 | R27: 0 | S27: =IF(G27='Targeting Self-Score'!$D$6,A27,0) -> 0 | T27: =IF(G27='Targeting Self-Score'!$D$7,A27,0) -> 0 | U27: =IF(G27='Targeting Self-Score'!$D$8,Targeting!A27,0) -> 0 | V27: =IF(G27='Targeting Self-Score'!$D$9,Targeting!A27,0) -> 0 | W27: =IF(G27='Targeting Self-Score'!$D$10,Targeting!A27,0) -> 0 | X27: =IF(G27='Targeting Self-Score'!$D$11,Targeting!A27,0) -> 0 | Y27: 1 | AB27: 0 | AC27: 0 | AE27: 0 | AF27: 0
D28: 0 | H28: 0 | P28: 0 | Q28: 0 | R28: 0 | S28: =IF(G28='Targeting Self-Score'!$D$6,A28,0) -> 0 | T28: =IF(G28='Targeting Self-Score'!$D$7,A28,0) -> 0 | U28: =IF(G28='Targeting Self-Score'!$D$8,Targeting!A28,0) -> 0 | V28: =IF(G28='Targeting Self-Score'!$D$9,Targeting!A28,0) -> 0 | W28: =IF(G28='Targeting Self-Score'!$D$10,Targeting!A28,0) -> 0 | X28: =IF(G28='Targeting Self-Score'!$D$11,Targeting!A28,0) -> 0 | Y28: 1 | AB28: 0 | AC28: 0 | AE28: 0 | AF28: 0
D29: 0 | H29: 0 | I29: =IF(G29="","",(G29*H29)) ->  | J29: =IF(I29="","",+I29/12*0.3) ->  | P29: 0 | Q29: 0 | R29: 0 | S29: =IF(G29='Targeting Self-Score'!$D$6,A29,0) -> 0 | T29: =IF(G29='Targeting Self-Score'!$D$7,A29,0) -> 0 | U29: =IF(G29='Targeting Self-Score'!$D$8,Targeting!A29,0) -> 0 | V29: =IF(G29='Targeting Self-Score'!$D$9,Targeting!A29,0) -> 0 | W29: =IF(G29='Targeting Self-Score'!$D$10,Targeting!A29,0) -> 0 | X29: =IF(G29='Targeting Self-Score'!$D$11,Targeting!A29,0) -> 0 | Y29: 1 | AB29: 0 | AC29: 0 | AE29: 0 | AF29: 0
D30: 0 | H30: 0 | P30: 0 | Q30: 0 | R30: 0 | S30: =IF(G30='Targeting Self-Score'!$D$6,A30,0) -> 0 | T30: =IF(G30='Targeting Self-Score'!$D$7,A30,0) -> 0 | U30: =IF(G30='Targeting Self-Score'!$D$8,Targeting!A30,0) -> 0 | V30: =IF(G30='Targeting Self-Score'!$D$9,Targeting!A30,0) -> 0 | W30: =IF(G30='Targeting Self-Score'!$D$10,Targeting!A30,0) -> 0 | X30: =IF(G30='Targeting Self-Score'!$D$11,Targeting!A30,0) -> 0 | Y30: 1 | AB30: 0 | AC30: 0 | AE30: 0 | AF30: 0
D31: 0 | H31: 0 | P31: 0 | Q31: 0 | R31: 0 | S31: =IF(G31='Targeting Self-Score'!$D$6,A31,0) -> 0 | T31: =IF(G31='Targeting Self-Score'!$D$7,A31,0) -> 0 | U31: =IF(G31='Targeting Self-Score'!$D$8,Targeting!A31,0) -> 0 | V31: =IF(G31='Targeting Self-Score'!$D$9,Targeting!A31,0) -> 0 | W31: =IF(G31='Targeting Self-Score'!$D$10,Targeting!A31,0) -> 0 | X31: =IF(G31='Targeting Self-Score'!$D$11,Targeting!A31,0) -> 0 | Y31: 1 | AB31: 0 | AC31: 0 | AE31: 0 | AF31: 0
D32: 0 | H32: 0 | P32: 0 | Q32: 0 | R32: 0 | S32: =IF(G32='Targeting Self-Score'!$D$6,A32,0) -> 0 | T32: =IF(G32='Targeting Self-Score'!$D$7,A32,0) -> 0 | U32: =IF(G32='Targeting Self-Score'!$D$8,Targeting!A32,0) -> 0 | V32: =IF(G32='Targeting Self-Score'!$D$9,Targeting!A32,0) -> 0 | W32: =IF(G32='Targeting Self-Score'!$D$10,Targeting!A32,0) -> 0 | X32: =IF(G32='Targeting Self-Score'!$D$11,Targeting!A32,0) -> 0 | Y32: 1 | AB32: 0 | AC32: 0 | AE32: 0 | AF32: 0
D33: 0 | H33: 0 | P33: 0 | Q33: 0 | R33: 0 | S33: =IF(G33='Targeting Self-Score'!$D$6,A33,0) -> 0 | T33: =IF(G33='Targeting Self-Score'!$D$7,A33,0) -> 0 | U33: =IF(G33='Targeting Self-Score'!$D$8,Targeting!A33,0) -> 0 | V33: =IF(G33='Targeting Self-Score'!$D$9,Targeting!A33,0) -> 0 | W33: =IF(G33='Targeting Self-Score'!$D$10,Targeting!A33,0) -> 0 | X33: =IF(G33='Targeting Self-Score'!$D$11,Targeting!A33,0) -> 0 | Y33: 1 | AB33: 0 | AC33: 0 | AE33: 0 | AF33: 0
D34: 0 | H34: 0 | P34: 0 | Q34: 0 | R34: 0 | S34: =IF(G34='Targeting Self-Score'!$D$6,A34,0) -> 0 | T34: =IF(G34='Targeting Self-Score'!$D$7,A34,0) -> 0 | U34: =IF(G34='Targeting Self-Score'!$D$8,Targeting!A34,0) -> 0 | V34: =IF(G34='Targeting Self-Score'!$D$9,Targeting!A34,0) -> 0 | W34: =IF(G34='Targeting Self-Score'!$D$10,Targeting!A34,0) -> 0 | X34: =IF(G34='Targeting Self-Score'!$D$11,Targeting!A34,0) -> 0 | Y34: 1 | AB34: 0 | AC34: 0 | AE34: 0 | AF34: 0
D35: 0 | H35: 0 | P35: 0 | Q35: 0 | R35: 0 | S35: =IF(G35='Targeting Self-Score'!$D$6,A35,0) -> 0 | T35: =IF(G35='Targeting Self-Score'!$D$7,A35,0) -> 0 | U35: =IF(G35='Targeting Self-Score'!$D$8,Targeting!A35,0) -> 0 | V35: =IF(G35='Targeting Self-Score'!$D$9,Targeting!A35,0) -> 0 | W35: =IF(G35='Targeting Self-Score'!$D$10,Targeting!A35,0) -> 0 | X35: =IF(G35='Targeting Self-Score'!$D$11,Targeting!A35,0) -> 0 | Y35: 1 | AB35: 0 | AC35: 0 | AE35: 0 | AF35: 0
D36: 0 | H36: 0 | P36: 0 | Q36: 0 | R36: 0 | S36: =IF(G36='Targeting Self-Score'!$D$6,A36,0) -> 0 | T36: =IF(G36='Targeting Self-Score'!$D$7,A36,0) -> 0 | U36: =IF(G36='Targeting Self-Score'!$D$8,Targeting!A36,0) -> 0 | V36: =IF(G36='Targeting Self-Score'!$D$9,Targeting!A36,0) -> 0 | W36: =IF(G36='Targeting Self-Score'!$D$10,Targeting!A36,0) -> 0 | X36: =IF(G36='Targeting Self-Score'!$D$11,Targeting!A36,0) -> 0 | Y36: 1 | AB36: 0 | AC36: 0 | AE36: 0 | AF36: 0
D37: 0 | H37: 0 | P37: 0 | Q37: 0 | R37: =IF(AND(G37>0,G37<=0.5),A37,0) -> 0 | S37: =IF(G37='Targeting Self-Score'!$D$6,A37,0) -> 0 | T37: =IF(G37='Targeting Self-Score'!$D$7,A37,0) -> 0 | U37: =IF(G37='Targeting Self-Score'!$D$8,Targeting!A37,0) -> 0 | V37: =IF(G37='Targeting Self-Score'!$D$9,Targeting!A37,0) -> 0 | W37: =IF(G37='Targeting Self-Score'!$D$10,Targeting!A37,0) -> 0 | X37: =IF(G37='Targeting Self-Score'!$D$11,Targeting!A37,0) -> 0 | Y37: =(E37*2)+1 -> 1 | AB37: =IF($C37="",0,$A37) -> 0 | AC37: =IF(E37>=3,A37,0) -> 0 | AE37: =(A37*L37)*12 -> 0 | AF37: =M37*12*A37 -> 0
D38: 0 | H38: 0 | P38: 0 | Q38: 0 | R38: =IF(AND(G38>0,G38<=0.5),A38,0) -> 0 | S38: =IF(G38='Targeting Self-Score'!$D$6,A38,0) -> 0 | T38: =IF(G38='Targeting Self-Score'!$D$7,A38,0) -> 0 | U38: =IF(G38='Targeting Self-Score'!$D$8,Targeting!A38,0) -> 0 | V38: =IF(G38='Targeting Self-Score'!$D$9,Targeting!A38,0) -> 0 | W38: =IF(G38='Targeting Self-Score'!$D$10,Targeting!A38,0) -> 0 | X38: =IF(G38='Targeting Self-Score'!$D$11,Targeting!A38,0) -> 0 | Y38: =(E38*2)+1 -> 1 | AB38: 0 | AC38: =IF(E38>=3,A38,0) -> 0 | AE38: =(A38*L38)*12 -> 0 | AF38: =M38*12*A38 -> 0
D39: 0 | H39: 0 | P39: 0 | Q39: 0 | R39: =IF(AND(G39>0,G39<=0.5),A39,0) -> 0 | S39: =IF(G39='Targeting Self-Score'!$D$6,A39,0) -> 0 | T39: =IF(G39='Targeting Self-Score'!$D$7,A39,0) -> 0 | U39: =IF(G39='Targeting Self-Score'!$D$8,Targeting!A39,0) -> 0 | V39: =IF(G39='Targeting Self-Score'!$D$9,Targeting!A39,0) -> 0 | W39: =IF(G39='Targeting Self-Score'!$D$10,Targeting!A39,0) -> 0 | X39: =IF(G39='Targeting Self-Score'!$D$11,Targeting!A39,0) -> 0 | Y39: =(E39*2)+1 -> 1 | AB39: 0 | AC39: =IF(E39>=3,A39,0) -> 0 | AE39: =(A39*L39)*12 -> 0 | AF39: =M39*12*A39 -> 0
D40: =A40*E40 -> 0 | H40: 0 | P40: 0 | Q40: 0 | R40: =IF(AND(G40>0,G40<=0.5),A40,0) -> 0 | S40: =IF(G40='Targeting Self-Score'!$D$6,A40,0) -> 0 | T40: =IF(G40='Targeting Self-Score'!$D$7,A40,0) -> 0 | U40: =IF(G40='Targeting Self-Score'!$D$8,Targeting!A40,0) -> 0 | V40: =IF(G40='Targeting Self-Score'!$D$9,Targeting!A40,0) -> 0 | W40: =IF(G40='Targeting Self-Score'!$D$10,Targeting!A40,0) -> 0 | X40: =IF(G40='Targeting Self-Score'!$D$11,Targeting!A40,0) -> 0 | Y40: =(E40*2)+1 -> 1 | AB40: =IF($C40="",0,$A40) -> 0 | AC40: =IF(E40>=3,A40,0) -> 0 | AE40: =(A40*L40)*12 -> 0 | AF40: =M40*12*A40 -> 0
A41: =IF(SUM(A20:A40)="","",SUM(A20:A40)) ->  | B41: Income-restricted units | K41: =IF(P41="","",+P41*12) ->  | L41: =IF(AE41=0,"",AE41) ->  | M41: =IF(AF41=0,"",AF41) ->  | P41: =SUM(P20:P40) -> 0 | R41: =SUM(R20:R40) -> 0 | S41: 0 | T41: 0 | U41: 0 | V41: 0 | W41: 0 | X41: 0 | AC41: =SUM(AC20:AC40) -> 0 | AE41: =SUM(AE20:AE40) -> 0 | AF41: =SUM(AF20:AF40) -> 0
A42: 0 | B42: Income-restricted manager units (included above)
A43: 0 | B43: Non income-restricted manager unit(s)
A44: 0 | B44: Non income-restricted special needs unit(s)
A45: 0 | B45: Non income-restricted units with 3+ bedrooms
A46: 0 | B46: Other non income-restricted unit(s)
A47: =IF((+A41+A43+A46+A44+A45)=0,"",+A41+A43+A46+A44+A45) ->  | B47: Total units in project (non-income restricted and restricted)
A48: =IF(A41="","",IF(A41>0,R41/A47,0)) ->  | B48: Percentage of units targeted to 50% AMI or below (must be at least 20%)
A49: =IF(SUM(AA$20:AA$42)=0,"",SUM(AA$20:AA$42)) ->  | B49: Homeless units
A50: =IF(SUM(AB$20:AB$42)+A44=0,"",SUM(AB$20:AB$42)+A44) ->  | B50: Special needs units
A51: =IF(A47="","",SUM(D20:D40)/A41) ->  | B51: Average bedrooms per unit
A52: =IF(A41="","",SUMPRODUCT(G20:G40,A20:A40)/SUM(A20:A40)) ->  | B52: Weighted Average Target AMI %
A53: =(SUMIF(E20:E40,">=3",A20:A40))+A45 -> 0 | B53: Units with 3+ bedrooms
H58: Yes | I58: Seniors | J58: Alameda
H59: No | I59: Other | J59: Alpine
J60: Amador
J61: Butte
J62: Calaveras
J63: Colusa
J64: Contra Costa
J65: Del Norte
J66: El Dorado
J67: Fresno
J68: Glenn
J69: Humboldt
J70: Imperial
J71: Inyo
J72: Kern
J73: Kings
J74: Lake
J75: Lassen
J76: Los Angeles
J77: Madera
J78: Marin
J79: Mariposa
J80: Mendocino
J81: Merced
J82: Modoc
J83: Mono
J84: Monterey
J85: Napa
J86: Nevada
J87: Orange
J88: Placer
J89: Plumas
J90: Riverside
J91: Sacramento
J92: San Benito
J93: San Bernardino
J94: San Diego
J95: San Francisco
J96: San Joaquin
J97: San Luis Obispo
J98: San Mateo
J99: Santa Barbara
J100: Santa Clara
J101: Santa Cruz
J102: Shasta
J103: Sierra
J104: Siskiyou
J105: Solano
J106: Sonoma
J107: Stanislaus
J108: Sutter
J109: Tehama
J110: Trinity
J111: Tulare
J112: Tuolumne
J113: Ventura
J114: Yolo
J115: Yuba
J116: Apache
J117: Cochise
J118: Coconino
J119: Gila
J120: Graham
J121: Greenlee
J122: La Paz
J123: Maricopa
J124: Mohave
J125: Navajo
J126: Pima
J127: Pinal
J128: Santa Cruz
J129: Yavapai
J130: Yuma
J131: Carson City
J132: Churchill
J133: Clark
J134: Douglas
J135: Elko
J136: Esmeralda
J137: Eureka
J138: Humboldt
J139: Lander
J140: Lincoln
J141: Lyon
J142: Mineral
J143: Nye
J144: Pershing
J145: Storey
J146: Washoe
J147: White Pine
J148: Out of District

Sheet Sources & Uses of Funds
A1: Rental Projects: Sources & Uses of Funds
A2: =Targeting!A2:M2 -> Version 5.2 Updated 1/27/22
A4: Project Name | C4: =IF(+Targeting!B5="","",+Targeting!B5) ->  | F4: Total Units | H4: =Targeting!A47 ->  | I4: Residential Square Footage | M4: Tax Credit Sales Price
C6: Select From Below | H6: Sources of Financing (Enter additional sources below)
A7: Construction Type | D7: Uses of Funds | E7: AHP Requested | F7: Owner Equity | G7: LIHTC Proceeds | H7: Permanent Loan | O7: (Must = 0) | P7: Pct of Total Expenses
A8: Building Type | S8: Column1 | T8: Column2
A9: LAND COST/ACQUISITION | S9: New | T9: Apartments
A10: Land Cost | O10: =+D10-SUM(E10:N10) -> 0 | P10: =IF(OR($D$92="",D10="",D10=0),"",D10/$D$92) ->  | S10: Rehab | T10: Single Family Homes
A11: Holding Costs | O11: 0 | P11: =IF(OR($D$92="",D11="",D11=0),"",D11/$D$92) ->  | T11: Townhomes
A12: Demolition | O12: 0
A13: Legal (includes closing costs) | O13: 0
A14: Total Land Cost | D14: =SUM(D10:D13) -> 0 | E14: =SUM(E10:E13) -> 0 | F14: 0 | G14: 0 | H14: 0 | I14: 0 | J14: 0 | K14: 0 | L14: 0 | M14: 0 | N14: 0 | O14: 0
A15: Existing Improvements | O15: 0
A16: Off-Site Improvements | O16: 0
A17: Total Land & Acquisition Costs | D17: =SUM(D14:D16) -> 0 | E17: =SUM(E14:E16) -> 0 | F17: =SUM(F14:F16) -> 0 | G17: =SUM(G14:G16) -> 0 | H17: 0 | I17: 0 | J17: 0 | K17: 0 | L17: 0 | M17: 0 | N17: 0 | O17: 0
A18: NEW CONSTRUCTION / REHAB
A19: Site Work | O19: =+D19-SUM(E19:N19) -> 0
A20: Structures | O20: =+D20-SUM(E20:N20) -> 0
A21: General Requirements | O21: 0
A22: Contractor Overhead | O22: 0
A23: Contractor Profit | O23: 0
A24: Prevailing Wages | O24: 0
A25: General Liabilities Insurance | O25: 0
A26: Environmental Remediation | O26: 0
A27: Hard Cost Contingency | O27: 0
A28: Total New Construction / Rehab Costs | D28: =SUM(D19:D27) -> 0 | E28: =SUM(E19:E27) -> 0 | F28: =SUM(F19:F27) -> 0 | G28: 0 | H28: 0 | I28: 0 | J28: =SUM(J19:J27) -> 0 | K28: 0 | L28: 0 | M28: 0 | N28: 0 | O28: 0
A29: ARCHITECTURAL FEES
A30: Design | O30: =+D30-SUM(E30:N30) -> 0
A31: Supervision | O31: =+D31-SUM(E31:N31) -> 0
A32: Survey & Engineering | O32: =+D32-SUM(E32:N32) -> 0
A33: Total Architectural & Engineering Costs | D33: =SUM(D30:D32) -> 0 | E33: =SUM(E30:E32) -> 0 | F33: =SUM(F30:F32) -> 0 | G33: =SUM(G30:G32) -> 0 | H33: 0 | I33: 0 | J33: 0 | K33: 0 | L33: 0 | M33: 0 | N33: 0 | O33: =+D33-SUM(E33:N33) -> 0
A34: CONSTRUCTION INTEREST & FEES
A35: Construction Loan Interest | O35: =+D35-SUM(E35:N35) -> 0
A36: Origination Fee | O36: 0
A37: Credit Enchancement & Application Fee | O37: 0
A38: Bond Premium | O38: 0
A39: Taxes | O39: 0
A40: Insurance | O40: 0
A41: Title & Recording | O41: 0
A42: Other | O42: 0
A43: Total Construction Interest & Fees | D43: =SUM(D35:D42) -> 0 | E43: =SUM(E35:E42) -> 0 | F43: =SUM(F35:F42) -> 0 | G43: =SUM(G35:G42) -> 0 | H43: 0 | I43: 0 | J43: 0 | K43: 0 | L43: 0 | M43: 0 | N43: 0 | O43: 0
A44: PERMANENT FINANCING
A45: Loan Origination Fee | O45: =+D45-SUM(E45:N45) -> 0
A46: Credit Enhancement & Application Fee | O46: =+D46-SUM(E46:N46) -> 0
A47: Title & Recording | O47: =+D47-SUM(E47:N47) -> 0
A48: Other | O48: =+D48-SUM(E48:N48) -> 0
A49: Total Permanent Financing Costs | D49: =SUM(D45:D48) -> 0 | E49: =SUM(E45:E48) -> 0 | F49: =SUM(F45:F48) -> 0 | G49: =SUM(G45:G48) -> 0 | H49: 0 | I49: 0 | J49: 0 | K49: 0 | L49: 0 | M49: 0 | N49: 0 | O49: =+D49-SUM(E49:N49) -> 0
A50: LEGAL FEES
A51: Lender Legal Paid by Applicant | O51: =+D51-SUM(E51:N51) -> 0
A52: Other | O52: =+D52-SUM(E52:N52) -> 0
A53: Total Attorney Costs | D53: =SUM(D51:D52) -> 0 | E53: =SUM(E51:E52) -> 0 | F53: =SUM(F51:F52) -> 0 | G53: =SUM(G51:G52) -> 0 | H53: 0 | I53: 0 | J53: 0 | K53: 0 | L53: 0 | M53: 0 | N53: 0 | O53: =+D53-SUM(E53:N53) -> 0
A54: RESERVES
A55: Rent Reserves | O55: =+D55-SUM(E55:N55) -> 0
A56: Operating Reserves | O56: =+D56-SUM(E56:N56) -> 0
A57: Replacement Reserves | O57: =+D57-SUM(E57:N57) -> 0
A58: Other | O58: =+D58-SUM(E58:N58) -> 0
A59: Total Reserve Costs | D59: =SUM(D55:D58) -> 0 | E59: =SUM(E55:E58) -> 0 | F59: =SUM(F55:F58) -> 0 | G59: =SUM(G55:G58) -> 0 | H59: 0 | I59: 0 | J59: 0 | K59: 0 | L59: 0 | M59: 0 | N59: 0 | O59: =+D59-SUM(E59:N59) -> 0
A60: OTHER PROJECT COSTS
A61: TCAC Application/Allocation/Monitoring Fees | O61: =+D61-SUM(E61:N61) -> 0
A62: Environmental Audit | O62: 0
A63: Local Development Impact Fees | O63: 0
A64: Permit Processing Fees | O64: 0
A65: Capital Fees | O65: 0
A66: Marketing | O66: 0
A67: Furnishings | O67: 0
A68: OTHER PROJECT COSTS (continued)
A69: Appraisal | O69: =+D69-SUM(E69:N69) -> 0
A70: Market Study | O70: 0
A71: Relocation Expenses | O71: 0
A72: Soft Cost Contingency | O72: 0
A73: Other | O73: 0
A74: Total Other Costs | D74: =SUM(D61:D73) -> 0 | E74: =SUM(E61:E73) -> 0 | F74: =SUM(F61:F73) -> 0 | G74: =SUM(G61:G73) -> 0 | H74: 0 | I74: 0 | J74: 0 | K74: 0 | L74: 0 | M74: 0 | N74: 0 | O74: 0
A75: DEVELOPER COSTS | P75: =IF(OR($D$92="",D75="",D75=0),"",D75/$D$92) -> 
A76: Developer Fee (includes Project Administration) | O76: =D76-SUM(E76:N76) -> 0
A77: Consultant/Processing Agent | O77: 0
A78: Broker Fees Paid with Project Funds to a Related Party | O78: 0
A79: Construction Management Oversight | O79: 0
A80: Other | O80: 0
A81: Total Developer Costs | D81: =SUM(D76:D80) -> 0 | E81: =SUM(E76:E80) -> 0 | F81: =SUM(F76:F80) -> 0 | G81: =SUM(G76:G80) -> 0 | H81: 0 | I81: 0 | J81: 0 | K81: 0 | L81: 0 | M81: 0 | N81: 0 | O81: 0
A82: SYNDICATION (Investor & General Partner)
A83: Organizational Fee | O83: =D83-SUM(E83:N83) -> 0
A84: Bridge Loan Fees/Expenses | O84: 0
A85: Legal Fees | O85: 0
A86: Consultant Fees | O86: 0
A87: Accountant Fees | O87: 0
A88: Tax Opinion | O88: 0
A89: Other | O89: 0
A90: Total Syndication Costs | D90: =SUM(D83:D89) -> 0 | E90: =SUM(E83:E89) -> 0 | F90: =SUM(F83:F89) -> 0 | G90: =SUM(G83:G89) -> 0 | H90: 0 | I90: 0 | J90: 0 | K90: 0 | L90: 0 | M90: 0 | N90: 0 | O90: =+D90-SUM(E90:N90) -> 0
S91: Loan
A92: Total Residential Development Costs | D92: =+D17+D28+D33+D43+D49+D53+D59+D74+D81+D90 -> 0 | E92: =+E17+E28+E33+E43+E49+E53+E59+E74+E81+E90 -> 0 | F92: 0 | G92: 0 | H92: 0 | I92: 0 | J92: 0 | K92: 0 | L92: 0 | M92: 0 | N92: 0 | O92: =+D92-SUM(E92:N92) -> 0 | P92: =IF(OR($D$92="",$D$92=0),"",D92/$D$92) ->  | S92: Grant
A93: Total Commercial Development Costs | O93: =+D93-SUM(E93:N93) -> 0 | S93: Equity
A94: Grand Totals Sources and Uses | D94: =D92+D93 -> 0 | E94: =E92+E93 -> 0 | F94: 0 | G94: 0 | H94: 0 | I94: 0 | J94: 0 | K94: 0 | L94: 0 | M94: 0 | N94: 0 | O94: =+D94-SUM(E94:N94) -> 0
D95: Loan, grant, or equity? | F95: Equity | G95: Equity | H95: Loan
C96: Status of Permanent Financing Commitment (Approved or Not Approved)
F97: If loan, soft or hard debt?
C98: If hard debt, complete all required cells | S98: Soft
G99: Loan Term (years) | S99: Hard
G100: Loan Amortization Period (years)
G101: Loan Interest Rate
G102: Annual Debt Service (year 1) (calculate for hard debt only) | H102: =IF(H101>0,ABS(PMT(H101/12,H100*12,H94)*12),0) -> 0 | I102: =IF(I101>0,ABS(PMT(I101/12,I100*12,I94)*12),0) -> 0 | J102: 0 | K102: 0 | L102: =IF(L101>0,ABS(PMT(L101/12,L100*12,L94)*12),0) -> 0 | M102: =IF(M101>0,ABS(PMT(M101/12,M100*12,M94)*12),0) -> 0 | N102: =IF(N101>0,ABS(PMT(N101/12,N100*12,N94)*12),0) -> 0 | O102: =SUM(H102:N102) -> 0
G103: Loan Adjustment Period(s)
G104: Loan Adjustment Caps (basis points) | S104: Not Approved
G105: Balloon Payments (term year) | S105: Approved
G106: Special Terms?
J109: Total Committed Financing | O109: =F94+IF(G96="Approved",G94,0)+IF(H96="Approved",H94,0)+IF(I96="Approved",I94,0)+IF(J96="Approved",J94,0)+IF(K96="Approved",K94,0)+IF(L96="Approved",L94,0)+IF(M96="Approved",M94,0)+IF(N96="Approved",N94,0) -> 0

Sheet Sources of Funds Summary
A1: Rental Projects: Sources of Funds Summary
A2: =Targeting!A2 -> Version 5.2 Updated 1/27/22
A5: Project Name | B5: =IF(Targeting!B5:G5="","",Targeting!B5:G5) ->  | M5: Response
A6: Please provide the required information below. | M6: Yes
M7: No
A8: Project Financing Sources*
A9: Select "Yes" or "No" | B9: Does the project intend to utilize funding from the following:
B11: HOME
B12: Community Development Block Grant (CDBG)
B13: Federal Housing Administration (FHA) insured
B14: Low Income Housing Tax Credits (LIHTC)
B15: Other Federal Housing Programs (excluding those listed above)
B16: Tax-exempt Multifamily Housing Bonds (excluding construction sources)
B17: State Funds (excluding Federal Government program funds)
B18: Local Government Funds (excluding Federal Government program funds)
B19: Non-Government Donated Funds (charitable funds)
B20: Member Permanent Loans
B21: Other (including Owner Equity, Deferred Fee, Sponsor Loans, etc.)
A23: * List only permanent financing sources.

Sheet 15-Year Op Pro Forma
A1: Rental Projects: 15-Year Operating Pro Forma
A2: ='Sources & Uses of Funds'!A2 -> Version 5.2 Updated 1/27/22
A4: Project Name | D4: =IF(+Targeting!B5="","",+Targeting!B5) ->  | F4: Total Units | H4: =Targeting!A47 ->  | I4: Project Based Rental Subsidy (Indicate "Yes" or "No") | P4: If Yes, what is the status?
AD5: Column1
A6: Income Assumptions | D6: Rate of Increase | F6: Year 1 | G6: Year 2 | H6: Year 3 | I6: Year 4 | J6: Year 5 | K6: Year 6 | L6: Year 7 | M6: Year 8 | N6: Year 9 | O6: Year 10 | P6: Year 11 | Q6: Year 12 | R6: Year 13 | S6: Year 14 | T6: Year 15 | U6: Year 1 Pct of Total Expenses | AD6: Yes
A7: Gross Residential Rents-Restricted Income Units | F7: =IF(+Targeting!M41="",0,+Targeting!M41) -> 0 | G7: =(F7*$E$6)+F7 -> 0 | H7: =(G7*$E$6)+G7 -> 0 | I7: 0 | J7: 0 | K7: 0 | L7: 0 | M7: 0 | N7: 0 | O7: 0 | P7: 0 | Q7: 0 | R7: 0 | S7: 0 | T7: 0 | AD7: No
A8: Gross Residential Rents-Restricted Income Units Subsidy | F8: =IF(+Targeting!L41="",0,+Targeting!L41) -> 0 | G8: =(F8*$E$6)+F8 -> 0 | H8: =(G8*$E$6)+G8 -> 0 | I8: 0 | J8: 0 | K8: 0 | L8: 0 | M8: 0 | N8: 0 | O8: 0 | P8: 0 | Q8: 0 | R8: 0 | S8: 0 | T8: 0
A9: Gross Residential Rents-Non-restricted Income Units | F9: 0 | G9: =(F9*$E$6)+F9 -> 0 | H9: 0 | I9: 0 | J9: 0 | K9: 0 | L9: 0 | M9: 0 | N9: 0 | O9: 0 | P9: 0 | Q9: 0 | R9: 0 | S9: 0 | T9: 0 | AD9: Status of Project Based Rental Subsidy Commitment
A10: Less Vacancy | D10: % of Gross Rents = | F10: =((F7+F8+F9)*$E$10)*-1 -> 0 | G10: =((G7+G8+G9)*$E$10)*-1 -> 0 | H10: 0 | I10: 0 | J10: 0 | K10: 0 | L10: 0 | M10: 0 | N10: 0 | O10: 0 | P10: 0 | Q10: 0 | R10: 0 | S10: 0 | T10: 0 | AD10: Approved
A11: Commercial Income | F11: ='15-Year Commercial Op Pro Forma'!F11 -> 0 | G11: ='15-Year Commercial Op Pro Forma'!G11 -> 0 | H11: ='15-Year Commercial Op Pro Forma'!H11 -> 0 | I11: ='15-Year Commercial Op Pro Forma'!I11 -> 0 | J11: ='15-Year Commercial Op Pro Forma'!J11 -> 0 | K11: ='15-Year Commercial Op Pro Forma'!K11 -> 0 | L11: ='15-Year Commercial Op Pro Forma'!L11 -> 0 | M11: ='15-Year Commercial Op Pro Forma'!M11 -> 0 | N11: ='15-Year Commercial Op Pro Forma'!N11 -> 0 | O11: ='15-Year Commercial Op Pro Forma'!O11 -> 0 | P11: ='15-Year Commercial Op Pro Forma'!P11 -> 0 | Q11: ='15-Year Commercial Op Pro Forma'!Q11 -> 0 | R11: ='15-Year Commercial Op Pro Forma'!R11 -> 0 | S11: ='15-Year Commercial Op Pro Forma'!S11 -> 0 | T11: ='15-Year Commercial Op Pro Forma'!T11 -> 0 | AD11: Not Approved
A12: Laundry, Parking | G12: =(F12*$E$6)+F12 -> 0 | H12: 0 | I12: 0 | J12: 0 | K12: 0 | L12: 0 | M12: 0 | N12: 0 | O12: 0 | P12: 0 | Q12: 0 | R12: 0 | S12: 0 | T12: 0
A13: Other | G13: =(F13*$E$6)+F13 -> 0 | H13: 0 | I13: 0 | J13: 0 | K13: 0 | L13: 0 | M13: 0 | N13: 0 | O13: 0 | P13: 0 | Q13: 0 | R13: 0 | S13: 0 | T13: 0
A14: Other | G14: =(F14*$E$6)+F14 -> 0 | H14: =(G14*$E$6)+G14 -> 0 | I14: 0 | J14: 0 | K14: 0 | L14: 0 | M14: 0 | N14: 0 | O14: 0 | P14: 0 | Q14: 0 | R14: 0 | S14: 0 | T14: 0
A15: Total Effective Gross Income | F15: =SUM(F7:F14) -> 0 | G15: 0 | H15: 0 | I15: 0 | J15: 0 | K15: 0 | L15: 0 | M15: 0 | N15: 0 | O15: 0 | P15: 0 | Q15: 0 | R15: 0 | S15: 0 | T15: 0
A17: Expense Assumptions | D17: Rate of Increase
A18: Management Fee | D18: Dollars per Unit/Mo. = | E18: =IF(F18="","",(F18/$H$4)/12) ->  | G18: =(F18*$E$17)+F18 -> 0 | H18: =(G18*$E$17)+G18 -> 0 | I18: 0 | J18: 0 | K18: 0 | L18: 0 | M18: 0 | N18: 0 | O18: 0 | P18: 0 | Q18: 0 | R18: 0 | S18: 0 | T18: 0 | U18: =IF(OR($F$37="",F18=0),"",F18/$F$37) -> 
A19: Legal & Audit | G19: =(F19*$E$17)+F19 -> 0 | H19: 0 | I19: 0 | J19: 0 | K19: 0 | L19: 0 | M19: 0 | N19: 0 | O19: 0 | P19: 0 | Q19: 0 | R19: 0 | S19: 0 | T19: 0
A20: Advertising | G20: 0 | H20: 0 | I20: 0 | J20: 0 | K20: 0 | L20: 0 | M20: 0 | N20: 0 | O20: 0 | P20: 0 | Q20: 0 | R20: 0 | S20: 0 | T20: 0
A21: Gas & Electric | G21: 0 | H21: 0 | I21: 0 | J21: 0 | K21: 0 | L21: 0 | M21: 0 | N21: 0 | O21: 0 | P21: 0 | Q21: 0 | R21: 0 | S21: 0 | T21: 0
A22: Water, Sewer, Waste Removal | G22: 0 | H22: 0 | I22: 0 | J22: 0 | K22: 0 | L22: 0 | M22: 0 | N22: 0 | O22: 0 | P22: 0 | Q22: 0 | R22: 0 | S22: 0 | T22: 0
A23: Supplies | G23: 0 | H23: 0 | I23: 0 | J23: 0 | K23: 0 | L23: 0 | M23: 0 | N23: 0 | O23: 0 | P23: 0 | Q23: 0 | R23: 0 | S23: 0 | T23: 0
A24: Payroll | G24: 0 | H24: 0 | I24: 0 | J24: 0 | K24: 0 | L24: 0 | M24: 0 | N24: 0 | O24: 0 | P24: 0 | Q24: 0 | R24: 0 | S24: 0 | T24: 0
A25: Insurance | G25: 0 | H25: 0 | I25: 0 | J25: 0 | K25: 0 | L25: 0 | M25: 0 | N25: 0 | O25: 0 | P25: 0 | Q25: 0 | R25: 0 | S25: 0 | T25: 0
A26: Pest Control | G26: 0 | H26: 0 | I26: 0 | J26: 0 | K26: 0 | L26: 0 | M26: 0 | N26: 0 | O26: 0 | P26: 0 | Q26: 0 | R26: 0 | S26: 0 | T26: 0
A27: Maintenance / Repair | G27: 0 | H27: 0 | I27: 0 | J27: 0 | K27: 0 | L27: 0 | M27: 0 | N27: 0 | O27: 0 | P27: 0 | Q27: 0 | R27: 0 | S27: 0 | T27: 0
A28: Operating Reserves | D28: Dollars per Unit = | E28: =IF(F28="","",(F28/$H$4)) ->  | G28: 0 | H28: 0 | I28: 0 | J28: 0 | K28: 0 | L28: 0 | M28: 0 | N28: 0 | O28: 0 | P28: 0 | Q28: 0 | R28: 0 | S28: 0 | T28: 0
A29: Replacement Reserves | D29: Dollars per Unit = | E29: =IF(F29="","",+F29/H4) ->  | G29: =F29 -> 0 | H29: =G29 -> 0 | I29: 0 | J29: 0 | K29: 0 | L29: 0 | M29: 0 | N29: 0 | O29: 0 | P29: 0 | Q29: 0 | R29: 0 | S29: 0 | T29: 0
A30: Real Estate Taxes (exempt if in CA) | G30: 0 | H30: 0 | I30: 0 | J30: 0 | K30: 0 | L30: 0 | M30: 0 | N30: 0 | O30: 0 | P30: 0 | Q30: 0 | R30: 0 | S30: 0 | T30: 0
A31: Local & State Assessments | G31: 0 | H31: 0 | I31: 0 | J31: 0 | K31: 0 | L31: 0 | M31: 0 | N31: 0 | O31: 0 | P31: 0 | Q31: 0 | R31: 0 | S31: 0 | T31: 0
A32: Mandatory Debt Fee Payments (e.g., CA MHP, TOD, MHSA) | G32: =(F32) -> 0 | H32: =(G32) -> 0 | I32: 0 | J32: 0 | K32: 0 | L32: 0 | M32: 0 | N32: 0 | O32: 0 | P32: 0 | Q32: 0 | R32: 0 | S32: 0 | T32: 0
A33: Commercial Expenses | F33: =IF('15-Year Commercial Op Pro Forma'!$T$4="Yes","0",'15-Year Commercial Op Pro Forma'!F31) -> 0 | G33: =IF('15-Year Commercial Op Pro Forma'!$T$4="Yes","0",'15-Year Commercial Op Pro Forma'!G31) -> 0 | H33: =IF('15-Year Commercial Op Pro Forma'!$T$4="Yes","0",'15-Year Commercial Op Pro Forma'!H31) -> 0 | I33: =IF('15-Year Commercial Op Pro Forma'!$T$4="Yes","0",'15-Year Commercial Op Pro Forma'!I31) -> 0 | J33: =IF('15-Year Commercial Op Pro Forma'!$T$4="Yes","0",'15-Year Commercial Op Pro Forma'!J31) -> 0 | K33: =IF('15-Year Commercial Op Pro Forma'!$T$4="Yes","0",'15-Year Commercial Op Pro Forma'!K31) -> 0 | L33: =IF('15-Year Commercial Op Pro Forma'!$T$4="Yes","0",'15-Year Commercial Op Pro Forma'!L31) -> 0 | M33: =IF('15-Year Commercial Op Pro Forma'!$T$4="Yes","0",'15-Year Commercial Op Pro Forma'!M31) -> 0 | N33: =IF('15-Year Commercial Op Pro Forma'!$T$4="Yes","0",'15-Year Commercial Op Pro Forma'!N31) -> 0 | O33: =IF('15-Year Commercial Op Pro Forma'!$T$4="Yes","0",'15-Year Commercial Op Pro Forma'!O31) -> 0 | P33: =IF('15-Year Commercial Op Pro Forma'!$T$4="Yes","0",'15-Year Commercial Op Pro Forma'!P31) -> 0 | Q33: =IF('15-Year Commercial Op Pro Forma'!$T$4="Yes","0",'15-Year Commercial Op Pro Forma'!Q31) -> 0 | R33: =IF('15-Year Commercial Op Pro Forma'!$T$4="Yes","0",'15-Year Commercial Op Pro Forma'!R31) -> 0 | S33: =IF('15-Year Commercial Op Pro Forma'!$T$4="Yes","0",'15-Year Commercial Op Pro Forma'!S31) -> 0 | T33: =IF('15-Year Commercial Op Pro Forma'!$T$4="Yes","0",'15-Year Commercial Op Pro Forma'!T31) -> 0
A34: Other | G34: =(F34*$E$17)+F34 -> 0 | H34: 0 | I34: 0 | J34: 0 | K34: 0 | L34: 0 | M34: 0 | N34: 0 | O34: 0 | P34: 0 | Q34: 0 | R34: 0 | S34: 0 | T34: 0
A35: Other | G35: =(F35*$E$17)+F35 -> 0 | H35: 0 | I35: 0 | J35: 0 | K35: 0 | L35: 0 | M35: 0 | N35: 0 | O35: 0 | P35: 0 | Q35: 0 | R35: 0 | S35: 0 | T35: 0
A36: Other | G36: =(F36*$E$17)+F36 -> 0 | H36: 0 | I36: 0 | J36: 0 | K36: 0 | L36: 0 | M36: 0 | N36: 0 | O36: 0 | P36: 0 | Q36: 0 | R36: 0 | S36: 0 | T36: 0
A37: Total Expenses | D37: Operating Cost/Unit | E37: =IF(F37=0,"",+F37/H4) ->  | F37: =SUM(F18:F36) -> 0 | G37: 0 | H37: 0 | I37: 0 | J37: 0 | K37: 0 | L37: 0 | M37: 0 | N37: 0 | O37: 0 | P37: 0 | Q37: 0 | R37: 0 | S37: 0 | T37: 0
A38: Net Operating Income | F38: =+F15-F37 -> 0 | G38: 0 | H38: 0 | I38: 0 | J38: 0 | K38: 0 | L38: 0 | M38: 0 | N38: 0 | O38: 0 | P38: 0 | Q38: 0 | R38: 0 | S38: 0 | T38: 0
A39: Debt Service (Hard Debt Only from S&U Statement) | F39: =+'Sources & Uses of Funds'!O102 -> 0 | G39: =+F39 -> 0 | H39: =+G39 -> 0 | I39: 0 | J39: 0 | K39: 0 | L39: 0 | M39: 0 | N39: 0 | O39: 0 | P39: 0 | Q39: 0 | R39: 0 | S39: 0 | T39: 0
A40: Debt Service Coverage Ratio | F40: =IF(F39>0,(F38/F39),0) -> 0 | G40: =IF(G39>0,(G38/G39),0) -> 0 | H40: 0 | I40: 0 | J40: 0 | K40: 0 | L40: 0 | M40: 0 | N40: 0 | O40: 0 | P40: 0 | Q40: 0 | R40: 0 | S40: 0 | T40: 0
A41: Cash Flow | F41: =+F38-F39 -> 0 | G41: =+G38-G39 -> 0 | H41: 0 | I41: 0 | J41: 0 | K41: 0 | L41: 0 | M41: 0 | N41: 0 | O41: 0 | P41: 0 | Q41: 0 | R41: 0 | S41: 0 | T41: 0
A42: Operating Grant/Reserve
A43: Operating Grant/Reserve
A44: Residual Receipts Payment to | D44: Asset and/or Partnership Mgmt. Fee
A45: Residual Receipts Payment to
A46: Residual Receipts Payment to
A47: Net Cash Flow | F47: =+F41+F42+F43-F44-F45-F46 -> 0 | G47: =+G41+G42+G43-G44-G45-G46 -> 0 | H47: 0 | I47: 0 | J47: 0 | K47: 0 | L47: 0 | M47: 0 | N47: 0 | O47: 0 | P47: 0 | Q47: 0 | R47: 0 | S47: 0 | T47: 0

Sheet 15-Year Commercial Op Pro Forma
A1: Rental Projects: 15-Year Commercial Operating Pro Forma
A2: ='Sources & Uses of Funds'!A2 -> Version 5.2 Updated 1/27/22
A4: Project Name | D4: =IF(+Targeting!B5="","",+Targeting!B5) ->  | F4: Total Units | H4: =Targeting!A47 ->  | I4: Did your permanent lender include commercial income in their underwriting? | R4: Triple Net Lease?
A6: Income Assumptions | D6: Rate of Increase | F6: Year 1 | G6: Year 2 | H6: Year 3 | I6: Year 4 | J6: Year 5 | K6: Year 6 | L6: Year 7 | M6: Year 8 | N6: Year 9 | O6: Year 10 | P6: Year 11 | Q6: Year 12 | R6: Year 13 | S6: Year 14 | T6: Year 15 | U6: Pct of Year 1 Total Expenses
A7: Scheduled Commercial Rents | G7: =(F7*$E$6)+F7 -> 0 | H7: =(G7*$E$6)+G7 -> 0 | I7: =(H7*$E$6)+H7 -> 0 | J7: 0 | K7: 0 | L7: 0 | M7: 0 | N7: 0 | O7: 0 | P7: 0 | Q7: 0 | R7: 0 | S7: 0 | T7: 0 | X7: Yes
A8: Less Vacancy | D8: % of Gross Rents = | F8: =(F7*$E$8)*-1 -> 0 | G8: =(G7*$E$8)*-1 -> 0 | H8: =(H7*$E$8)*-1 -> 0 | I8: 0 | J8: 0 | K8: 0 | L8: 0 | M8: 0 | N8: 0 | O8: 0 | P8: 0 | Q8: 0 | R8: 0 | S8: 0 | T8: 0 | X8: No
A9: Other | G9: =(F9*$E$6)+F9 -> 0 | H9: =(G9*$E$6)+G9 -> 0 | I9: 0 | J9: 0 | K9: 0 | L9: 0 | M9: 0 | N9: 0 | O9: 0 | P9: 0 | Q9: 0 | R9: 0 | S9: 0 | T9: 0 | X9: N/A
A10: Other | G10: =(F10*$E$6)+F10 -> 0 | H10: 0 | I10: 0 | J10: 0 | K10: 0 | L10: 0 | M10: 0 | N10: 0 | O10: 0 | P10: 0 | Q10: 0 | R10: 0 | S10: 0 | T10: 0
A11: Total Effective Commercial Gross Income | F11: =SUM(F7:F10) -> 0 | G11: =SUM(G7:G10) -> 0 | H11: 0 | I11: 0 | J11: 0 | K11: 0 | L11: 0 | M11: 0 | N11: 0 | O11: 0 | P11: 0 | Q11: 0 | R11: 0 | S11: 0 | T11: 0
A13: Expense Assumptions | D13: Rate of Increase
A14: Management Fee | D14: Dollars per Unit/Mo. = | E14: =IF(F14="","",(F14/$H$4)/12) ->  | G14: =F14*(1+$E$13) -> 0 | H14: =G14*(1+$E$13) -> 0 | I14: 0 | J14: 0 | K14: =J14*(1+$E$13) -> 0 | L14: 0 | M14: 0 | N14: 0 | O14: 0 | P14: 0 | Q14: 0 | R14: 0 | S14: 0 | T14: 0 | U14: =IF(OR($F$31="",F14=0),"",F14/$F$31) -> 
A15: Legal & Audit | G15: =(F15*$E$13)+F15 -> 0 | H15: 0 | I15: 0 | J15: 0 | K15: 0 | L15: 0 | M15: 0 | N15: 0 | O15: 0 | P15: 0 | Q15: 0 | R15: 0 | S15: 0 | T15: 0 | U15: =IF(OR($F$31="",F15=0),"",F15/$F$31) -> 
A16: Advertising | G16: 0 | H16: 0 | I16: 0 | J16: 0 | K16: 0 | L16: 0 | M16: 0 | N16: 0 | O16: 0 | P16: 0 | Q16: 0 | R16: 0 | S16: 0 | T16: 0
A17: Gas & Electric | G17: 0 | H17: 0 | I17: 0 | J17: 0 | K17: 0 | L17: 0 | M17: 0 | N17: 0 | O17: 0 | P17: 0 | Q17: 0 | R17: 0 | S17: 0 | T17: 0
A18: Water, Sewer, Waste Removal | G18: 0 | H18: 0 | I18: 0 | J18: 0 | K18: 0 | L18: 0 | M18: 0 | N18: 0 | O18: 0 | P18: 0 | Q18: 0 | R18: 0 | S18: 0 | T18: 0
A19: Supplies | G19: 0 | H19: 0 | I19: 0 | J19: 0 | K19: 0 | L19: 0 | M19: 0 | N19: 0 | O19: 0 | P19: 0 | Q19: 0 | R19: 0 | S19: 0 | T19: 0
A20: Payroll | G20: 0 | H20: 0 | I20: 0 | J20: 0 | K20: 0 | L20: 0 | M20: 0 | N20: 0 | O20: 0 | P20: 0 | Q20: 0 | R20: 0 | S20: 0 | T20: 0
A21: Insurance | G21: 0 | H21: 0 | I21: 0 | J21: 0 | K21: 0 | L21: 0 | M21: 0 | N21: 0 | O21: 0 | P21: 0 | Q21: 0 | R21: 0 | S21: 0 | T21: 0
A22: Pest Control | G22: 0 | H22: 0 | I22: 0 | J22: 0 | K22: 0 | L22: 0 | M22: 0 | N22: 0 | O22: 0 | P22: 0 | Q22: 0 | R22: 0 | S22: 0 | T22: 0
A23: Maintenance / Repair | G23: 0 | H23: 0 | I23: 0 | J23: 0 | K23: 0 | L23: 0 | M23: 0 | N23: 0 | O23: 0 | P23: 0 | Q23: 0 | R23: 0 | S23: 0 | T23: 0
A24: Operating Reserves | D24: Dollars per Unit = | E24: =IF(F24="","",(F24/$H$4)) ->  | G24: 0 | H24: 0 | I24: 0 | J24: 0 | K24: 0 | L24: 0 | M24: 0 | N24: 0 | O24: 0 | P24: 0 | Q24: 0 | R24: 0 | S24: 0 | T24: 0
A25: Replacement Reserves | D25: Dollars per Unit = | E25: =IF(F25="","",+F25/H4) ->  | G25: =F25 -> 0 | H25: =G25 -> 0 | I25: 0 | J25: 0 | K25: 0 | L25: 0 | M25: 0 | N25: 0 | O25: 0 | P25: 0 | Q25: 0 | R25: 0 | S25: 0 | T25: 0
A26: Real Estate Taxes | G26: 0 | H26: 0 | I26: 0 | J26: 0 | K26: 0 | L26: 0 | M26: 0 | N26: 0 | O26: 0 | P26: 0 | Q26: 0 | R26: 0 | S26: 0 | T26: 0
A27: Local & State Assessments | G27: 0 | H27: 0 | I27: 0 | J27: 0 | K27: 0 | L27: 0 | M27: 0 | N27: 0 | O27: 0 | P27: 0 | Q27: 0 | R27: 0 | S27: 0 | T27: 0
A28: Other | G28: =(F28*$E$13)+F28 -> 0 | H28: 0 | I28: 0 | J28: 0 | K28: 0 | L28: 0 | M28: 0 | N28: 0 | O28: 0 | P28: 0 | Q28: 0 | R28: 0 | S28: 0 | T28: 0
A29: Other | G29: 0 | H29: 0 | I29: 0 | J29: 0 | K29: 0 | L29: 0 | M29: 0 | N29: 0 | O29: 0 | P29: 0 | Q29: 0 | R29: 0 | S29: 0 | T29: 0
A30: Other | G30: 0 | H30: 0 | I30: 0 | J30: 0 | K30: 0 | L30: 0 | M30: 0 | N30: 0 | O30: 0 | P30: 0 | Q30: 0 | R30: 0 | S30: 0 | T30: 0
A31: Total Expenses | D31: Operating Cost/Unit | E31: =IF(F31=0,"",+F31/H4) ->  | F31: =SUM(F14:F30) -> 0 | G31: =SUM(G14:G30) -> 0 | H31: 0 | I31: 0 | J31: 0 | K31: 0 | L31: 0 | M31: 0 | N31: 0 | O31: 0 | P31: 0 | Q31: 0 | R31: 0 | S31: 0 | T31: 0
A32: Net Operating Income | F32: =+F11-F31 -> 0 | G32: =+G11-G31 -> 0 | H32: 0 | I32: 0 | J32: 0 | K32: 0 | L32: 0 | M32: 0 | N32: 0 | O32: 0 | P32: 0 | Q32: 0 | R32: 0 | S32: 0 | T32: 0
A33: Debt Service (Hard Debt Only) | G33: =+F33 -> 0 | H33: =+G33 -> 0 | I33: 0 | J33: 0 | K33: 0 | L33: 0 | M33: 0 | N33: 0 | O33: 0 | P33: 0 | Q33: 0 | R33: 0 | S33: 0 | T33: 0
A34: Debt Service Coverage Ratio | F34: =IF(F33>0,(F32/F33),0) -> 0 | G34: =IF(G33>0,(G32/G33),0) -> 0 | H34: 0 | I34: 0 | J34: 0 | K34: 0 | L34: 0 | M34: 0 | N34: 0 | O34: 0 | P34: 0 | Q34: 0 | R34: 0 | S34: 0 | T34: 0
A35: Cash Flow | F35: =+F32-F33 -> 0 | G35: =+G32-G33 -> 0 | H35: 0 | I35: 0 | J35: 0 | K35: 0 | L35: 0 | M35: 0 | N35: 0 | O35: 0 | P35: 0 | Q35: 0 | R35: 0 | S35: 0 | T35: 0
A36: Operating Grant/Reserve
A37: Operating Grant/Reserve
A38: Residual Receipts Payment to
A39: Residual Receipts Payment to
A40: Residual Receipts Payment to
A41: Net Cash Flow | F41: =+F35+F36+F37-F38-F39-F40 -> 0 | G41: =+G35+G36+G37-G38-G39-G40 -> 0 | H41: 0 | I41: 0 | J41: 0 | K41: 0 | L41: 0 | M41: 0 | N41: 0 | O41: 0 | P41: 0 | Q41: 0 | R41: 0 | S41: 0 | T41: 0

Sheet Workbook Comments
A1: Rental Projects: Workbook Comments
A2: ='Sources & Uses of Funds'!A2 -> Version 5.2 Updated 1/27/22
A4: Project Name | D4: =IF(+Targeting!B5="","",+Targeting!B5) ->  | E4: Total Units | G4: =Targeting!A47 -> 
A6: Use this tab to provide clarifications, details, or comments on line items in the Sources & Uses of Funds, 15-Year Op Pro Forma, or 15-Year Commercial Op Pro Forma tabs, if needed.
A8: Sources & Uses of Funds
A17: 15-Year Op Pro Forma
A26: 15-Year Commercial Op Pro Forma

Sheet Empowerment Budget
A1: Rental Projects: Promotion of Empowerment Budget
A2: ='Sources & Uses of Funds'!A2 -> Version 5.2 Updated 1/27/22
A4: Project Name | D4: =IF(+Targeting!B5="","",+Targeting!B5) ->  | E4: Total Units | G4: =Targeting!A47 -> 
A6: Source of Revenue | E6: Year 1 | F6: Notes
A13: Total Revenue | E13: =SUM(E7:E12) -> 0
A15: Expenses
A26: Total Expenses | E26: =SUM(E16:E25) -> 0
A27: Total Revenue minus Total Expenses | E27: =E13-E26 -> 0

Sheet Benchmarks
A1: Rental Projects: Benchmarks
A2: =Targeting!A2:M2 -> Version 5.2 Updated 1/27/22
A4: Project Name | B4: =IF(+Targeting!B5="","",+Targeting!B5) ->  | D4: Total Units | E4: ='15-Year Op Pro Forma'!H4 -> 
A6: Criterion | B6: Per Schedules | C6: Feasibility Benchmark | D6: Oversubsidization Benchmark | E6: Within Benchmarks? | F6: Provide detailed explanations and supporting documentation for all benchmark deviations. Deviation explanations must be quantifiable in relation to the amount the benchmark is exceeded. Third-party supporting documentation is preferred.
A8: Development Budget
A9: Building type | B9: =IF('Sources & Uses of Funds'!C8="","",'Sources & Uses of Funds'!C8) ->  | C9: To ensure consistent and reasonable cost assumptions, the per square foot construction cost should not be greater than the gross residential square footage cost estimates included in the application Reference Guide and on the next tab. Calculation takes total new construction or rehab costs minus environmental remediation and hard cost contingency, and divides it by total residential square footage. Off-site work, environmental remediation, and hard cost continency line items cannot be used to explain benchmark deviation.
A10: Total construction hard costs | B10: =IF('Sources & Uses of Funds'!D28=0,"",SUM('Sources & Uses of Funds'!D19:'Sources & Uses of Funds'!D25)) -> 
A11: Construction costs per square foot (excluding land costs and soft costs) | B11: =IF('Sources & Uses of Funds'!D94=0,0,(('Sources & Uses of Funds'!D28-'Sources & Uses of Funds'!D26-'Sources & Uses of Funds'!D27)/'Sources & Uses of Funds'!L4)) -> 0 | C11: N/A | D11: =IF(B9="Apartments",(VLOOKUP(H11,'Cost Estimates by City Zip'!A14:G922,4)),IF(B9="Condos",(VLOOKUP(H11,'Cost Estimates by City Zip'!A14:G922,5)),IF(B9="Single Family Homes",(VLOOKUP(H11,'Cost Estimates by City Zip'!A14:G922,6)),IF(B9="Townhomes",(VLOOKUP(H11,'Cost Estimates by City Zip'!A14:G922,7,FALSE)))))) -> FALSE | E11: =IF(B11>0,(IF(B11<=D11,"Yes","No")),"Yes") -> Yes | H11: =LEFT(Targeting!N6,3) -> 
A12: Construction/rehabilitation hard cost contingency as % of construction/rehabilitation hard costs | B12: =IF('Sources & Uses of Funds'!D28=0,0,'Sources & Uses of Funds'!D27/('Sources & Uses of Funds'!D28-'Sources & Uses of Funds'!D27)) -> 0 | C12: New Construction = | D12: New Construction = | E12: =IF('Sources & Uses of Funds'!C7="New",IF(B12>=C13,IF(B12<=D13,"Yes","No"),"No"),IF(B12>=C15,IF(B12<=D15,"Yes","No"),"No")) -> No
C13: 0.05 | D13: 0.1
C14: Rehab = | D14: Rehab =
C15: 0.075 | D15: 0.2
A16: Capitalized replacement reserves | B16: =+'Sources & Uses of Funds'!D57 -> 0 | C16: $0 on new construction projects. Variable on rehabilitation projects depending on age and condition of building (Exceptions made if reserves required by funding agency) | E16: =IF('Sources & Uses of Funds'!C7="Rehab","Yes",IF(B16=0,"Yes","No")) -> Yes
A17: Capitalized operating reserves | B17: =+'Sources & Uses of Funds'!D55+'Sources & Uses of Funds'!D56+'Sources & Uses of Funds'!D58 -> 0 | C17: 0 | D17: 12 months operating expense and debt service payments (must be covered by financing sources other than AHP. Must provide documentation for benchmark deviation.): | E17: =IF(B17<=D18,"Yes", "No") -> Yes
D18: =('15-Year Op Pro Forma'!F37+'15-Year Op Pro Forma'!F39) -> 0
A19: Total developer fee | B19: =IF(+'Sources & Uses of Funds'!D92=0,0,'Sources & Uses of Funds'!D76) -> 0 | C19: 0 | D19: Not greater than 15% of total residential development costs (excluding developer fee and all capitalized reserves) | E19: =IF(B20="","",IF(B20>0.15,"No","Yes")) -> Yes
A20: Total developer fee as percentage of total residential development costs | B20: =IF('Sources & Uses of Funds'!D92=0,0,('Sources & Uses of Funds'!D76)/('Sources & Uses of Funds'!D92-('Sources & Uses of Funds'!D59+'Sources & Uses of Funds'!D76))) -> 0
A21: Soft cost contingency as % of soft costs | B21: =IF('Sources & Uses of Funds'!D72=0,0,('Sources & Uses of Funds'!D72/('Sources & Uses of Funds'!D92-'Sources & Uses of Funds'!D17-'Sources & Uses of Funds'!D28))) -> 0 | C21: 0 | D21: 0.1 | E21: =IF(B21>D21,"No", "Yes") -> Yes
A22: 15-Year Operating Pro Forma
A23: Pro forma assumptions for income compared to expense increases. Expense increase minus income increase = | B23: =IF('15-Year Op Pro Forma'!E17="","0%",'15-Year Op Pro Forma'!E17-'15-Year Op Pro Forma'!E6) -> 0% | C23: Expenses increase 1% faster than revenues; e.g., 4% cost increase versus 3% income increase | D23: Expenses increase 2% faster than revenues; e.g., 5% cost increase versus 3% income increase | E23: =IF(B23>=0.01,IF(B23<=0.02,"Yes","No"),"No") -> No
A24: Vacancy and bad debt rate: residential | B24: =IF(+'15-Year Op Pro Forma'!E10="","",'15-Year Op Pro Forma'!E10) ->  | C24: Projects with No Project-Based Rental Subsidies | D24: All Projects | E24: =IF('15-Year Op Pro Forma'!O4="Yes",IF(B24>=C27,IF(B24<=D26,"Yes","No"),"No"),IF(B24>=C25,IF(B24<=D26,"Yes","No"),"No")) -> No
C25: 0.05
C26: Projects with Project-Based Rental Subsidies | D26: 0.1
C27: 0.03
A28: Vacancy and bad debt rate: commercial | B28: =IF(+'15-Year Commercial Op Pro Forma'!E8="","",'15-Year Commercial Op Pro Forma'!E8) ->  | C28: 10% of gross rents | D28: 50% of gross rents | E28: =IF(B28="","N/A",IF(B28>=0.1,IF(B28<=0.5,"Yes","No"),"No")) -> N/A
A29: Management fees per unit per month | B29: =IF('15-Year Op Pro Forma'!E18="","$0",'15-Year Op Pro Forma'!E18) -> $0 | C29: Not less than $25 | D29: Not greater than $65 | E29: =IF(B29>=25,IF(B29<=65,"Yes","No"),"No") -> No
A30: Operating reserves per unit per year | B30: =IF('15-Year Op Pro Forma'!E28="","$0",'15-Year Op Pro Forma'!E28) -> $0 | C30: $0, but if zero, must have adequate cushion built into debt service coverage ratio | D30: Not greater than $300 per unit per year | E30: =IF(B30="$0","Yes",IF(B30<301,"Yes","No")) -> Yes
A31: Annual replacement reserves per unit | B31: =IF('15-Year Op Pro Forma'!E29="","$0",'15-Year Op Pro Forma'!E29) -> $0 | C31: 250 | D31: 600 | E31: =IF(B31<250,"No",IF(B31>600,"No","Yes")) -> No
A32: Operating cost per unit per year | B32: =IF('15-Year Op Pro Forma'!E37="","$0",'15-Year Op Pro Forma'!E37) -> $0 | C32: Projects Located in SF Bay Area and LA Metro* Not less than $5,000 | D32: Projects Located in SF Bay Area and LA Metro* Not greater than $10,000 | E32: =IF(H32="Higher Cost",(IF(OR(B32<5000,B32>10000),"No","Yes")),(IF(OR(B32<4000,B32>8000),"No","Yes"))) -> No | H32: =IF(OR(Targeting!I6="San Francisco",Targeting!I6="Solano",Targeting!I6="Alameda",Targeting!I6="Napa",Targeting!I6="Sonoma",Targeting!I6="Marin",Targeting!I6="Contra Costa",Targeting!I6="San Mateo",Targeting!I6="Santa Clara",Targeting!I6="Los Angeles",Targeting!I6="Ventura",Targeting!I6="Orange",Targeting!I6="Riverside",Targeting!I6="San Bernardino"),"Higher Cost","Lower Cost") -> Lower Cost
C33: All Other Projects Not less than $4,000 | D33: All Other Projects Not greater than $8,000
A34: Debt service coverage ratio in Year 1 (defined as net operating income divided by debt service payment) | B34: =IF('15-Year Op Pro Forma'!F40=0,"",ROUND('15-Year Op Pro Forma'!F40,2)) ->  | C34: 1.05 | D34: 1.45 | E34: =IF('Sources & Uses of Funds'!O102>0,IF(B34>=C34,IF(B34<=D34,"Yes","No"),"No"),"N/A") -> N/A
A35: Net cashflow in Year 1 | B35: =IF(+'15-Year Op Pro Forma'!F47=0,0,ROUND('15-Year Op Pro Forma'!F47,0)) -> 0 | C35: 0 | D35: Not to exceed 10% of gross income in year one unless cashflow is needed by project to cover deficits throughout the retention period, or in order to meet minimum underwriting requirements for other lenders. | E35: =IF(B36>=0,IF(B36<D36,"Yes","No"),"No") -> Yes
B36: =ROUNDDOWN(IF('15-Year Op Pro Forma'!F47=0,0,'15-Year Op Pro Forma'!F47/'15-Year Op Pro Forma'!F15),B44) -> 0 | D36: 0.1
A37: Net cashflow in Years 1 through 5 | B37: =IF(+SUM('15-Year Op Pro Forma'!F47:J47)=0,0,SUM('15-Year Op Pro Forma'!F47:J47)) -> 0 | C37: 0 | D37: Not to exceed the amount of the subsidy request. | E37: =IF(B37>=0,IF(B37<D38,"Yes","No"),"No") -> No
D38: ='Sources & Uses of Funds'!E94 -> 0
A39: Term of permanent financing | B39: =MIN(IF('Sources & Uses of Funds'!H97:N97="hard",'Sources & Uses of Funds'!H99:N99,"")) -> 0 | C39: Not less than 15 years, unless extenuating circumstances | E39: =IF(OR(B39="",B39=0),"N/A",IF(B39>=15,"Yes", "No")) -> N/A
A40: Interest rate assumptions | B40: =MAX(IF('Sources & Uses of Funds'!H97:N97="Hard",'Sources & Uses of Funds'!H101:N101)) -> 0 | C40: To ensure consistent and reasonable rate assumptions, interest rates and spreads should be set in accordance with the Interest Rate Assumptions Guidelines included in the application package.
A41: *SF Bay Area includes the following nine counties: San Francisco, Solano, Alameda, Napa, Sonoma, Marin, Contra Costa, San Mateo, and Santa Clara. LA Metro includes the following five counties: Los Angeles, Ventura, Orange, Riverside, and San Bernardino.
B44: 3

Sheet Cost Estimates by City Zip
A6: 2022 Gross Residential Square Footage Cost Estimates
A7: Construction Costs by ZIP Code and City
A9: (Source: RSMeans, The Gordian Group, Bank Portfolio)
A11: Note: Use cost estimates by ZIP code and city.
A13: First Three Digits of ZIP Code | B13: State | C13: City | D13: Apartments | E13: Condos | F13: Single-Family Homes | G13: Townhomes | H13: Apartments before Boost | I13: Condos before Boost | J13: Single-Family Homes before Boost | K13: Townhomes before Boost
A14: 010 | B14: MA | C14: SPRINGFIELD | D14: =H14 -> 331.8471528 | E14: =I14 -> 343.4502001 | F14: =J14 -> 218.9611056 | G14: =K14 -> 305.160144 | H14: 331.8471528 | I14: 343.4502001 | J14: 218.9611056 | K14: 305.160144
A15: 011 | B15: MA | C15: SPRINGFIELD | D15: =H15 -> 331.8471528 | E15: 343.4502001 | F15: 218.9611056 | G15: 305.160144 | H15: 331.8471528 | I15: 343.4502001 | J15: 218.9611056 | K15: 305.160144
A16: 012 | B16: MA | C16: PITTSFIELD | D16: 322.6242514 | E16: 333.9048196 | F16: 212.8756031 | G16: 296.6789445 | H16: 322.6242514 | I16: 333.9048196 | J16: 212.8756031 | K16: 296.6789445
A17: 013 | B17: MA | C17: GREENFIELD | D17: 324.1702886 | E17: 335.5049141 | F17: 213.8957174 | G17: 298.10065 | H17: 324.1702886 | I17: 335.5049141 | J17: 213.8957174 | K17: 298.10065
A18: 014 | B18: MA | C18: FITCHBURG | D18: 325.2388212 | E18: 336.6108079 | F18: 214.6007621 | G18: 299.0832517 | H18: 325.2388212 | I18: 336.6108079 | J18: 214.6007621 | K18: 299.0832517
A19: 015 | B19: MA | C19: WORCESTER | D19: 341.7908252 | E19: 353.7415534 | F19: 225.522191 | G19: 314.3041505 | H19: 341.7908252 | I19: 353.7415534 | J19: 225.522191 | K19: 314.3041505
A20: 016 | B20: MA | C20: WORCESTER | D20: 341.7908252 | E20: 353.7415534 | F20: 225.522191 | G20: 314.3041505 | H20: 341.7908252 | I20: 353.7415534 | J20: 225.522191 | K20: 314.3041505
A21: 017 | B21: MA | C21: FRAMINGHAM | D21: 336.3937522 | E21: 348.1557715 | F21: 221.9610664 | G21: 309.3411078 | H21: 336.3937522 | I21: 348.1557715 | J21: 221.9610664 | K21: 309.3411078
A22: 018 | B22: MA | C22: LOWELL | D22: 349.804 | E22: 362.0349091 | F22: 230.8094855 | G22: 321.6729091 | H22: 349.804 | I22: 362.0349091 | J22: 230.8094855 | K22: 321.6729091
A23: 019 | B23: MA | C23: LAWRENCE | D23: 349.8483205 | E23: 362.0807793 | F23: 230.8387292 | G23: 321.7136654 | H23: 349.8483205 | I23: 362.0807793 | J23: 230.8387292 | K23: 321.7136654
A24: 020 | B24: MA | C24: BOSTON | D24: 370.6414703 | E24: 383.6009623 | F24: 244.5585729 | G24: 340.8346388 | H24: 370.6414703 | I24: 383.6009623 | J24: 244.5585729 | K24: 340.8346388
A25: 021 | B25: MA | C25: BOSTON | D25: 370.6414703 | E25: 383.6009623 | F25: 244.5585729 | G25: 340.8346388 | H25: 370.6414703 | I25: 383.6009623 | J25: 244.5585729 | K25: 340.8346388
A26: 022 | B26: MA | C26: BOSTON | D26: 370.6414703 | E26: 383.6009623 | F26: 244.5585729 | G26: 340.8346388 | H26: 370.6414703 | I26: 383.6009623 | J26: 244.5585729 | K26: 340.8346388
A27: 023 | B27: MA | C27: BROCKTON | D27: 339.7971082 | E27: 351.678126 | F27: 224.2066863 | G27: 312.4707674 | H27: 339.7971082 | I27: 351.678126 | J27: 224.2066863 | K27: 312.4707674
A28: 024 | B28: MA | C28: BOSTON | D28: 370.6414703 | E28: 383.6009623 | F28: 244.5585729 | G28: 340.8346388 | H28: 370.6414703 | I28: 383.6009623 | J28: 244.5585729 | K28: 340.8346388
A29: 025 | B29: MA | C29: BUZZARDS BAY | D29: 322.608 | E29: 333.888 | F29: 212.86488 | G29: 296.664 | H29: 322.608 | I29: 333.888 | J29: 212.86488 | K29: 296.664
A30: 026 | B30: MA | C30: HYANNIS | D30: 331.4617091 | E30: 343.0512793 | F30: 218.7067801 | G30: 304.8056975 | H30: 331.4617091 | I30: 343.0512793 | J30: 218.7067801 | K30: 304.8056975
A31: 027 | B31: MA | C31: NEW BEDFORD | D31: 336.4733361 | E31: 348.238138 | F31: 222.0135778 | G31: 309.4142915 | H31: 336.4733361 | I31: 348.238138 | J31: 222.0135778 | K31: 309.4142915
A32: 028 | B32: RI | C32: NEWPORT | D32: 332.5175609 | E32: 344.1440491 | F32: 219.4034578 | G32: 305.7766382 | H32: 332.5175609 | I32: 344.1440491 | J32: 219.4034578 | K32: 305.7766382
A33: 029 | B33: RI | C33: PROVIDENCE | D33: 342.0350619 | E33: 353.9943298 | F33: 225.6833445 | G33: 314.5287458 | H33: 342.0350619 | I33: 353.9943298 | J33: 225.6833445 | K33: 314.5287458
A34: 030 | B34: NH | C34: NASHUA | D34: 313.3859383 | E34: 324.3434886 | F34: 206.7799315 | G34: 288.1835726 | H34: 313.3859383 | I34: 324.3434886 | J34: 206.7799315 | K34: 288.1835726
A35: 031 | B35: NH | C35: MANCHESTER | D35: 315.3174732 | E35: 326.3425596 | F35: 208.0544069 | G35: 289.9597743 | H35: 315.3174732 | I35: 326.3425596 | J35: 208.0544069 | K35: 289.9597743
A36: 032 | B36: NH | C36: CONCORD | D36: 316.3285293 | E36: 327.3889674 | F36: 208.7215271 | G36: 290.8895217 | H36: 316.3285293 | I36: 327.3889674 | J36: 208.7215271 | K36: 290.8895217
A37: 033 | B37: NH | C37: CONCORD | D37: 316.3285293 | E37: 327.3889674 | F37: 208.7215271 | G37: 290.8895217 | H37: 316.3285293 | I37: 327.3889674 | J37: 208.7215271 | K37: 290.8895217
A38: 034 | B38: NH | C38: KEENE | D38: 294.3538605 | E38: 304.6459535 | F38: 194.2220874 | G38: 270.6820465 | H38: 294.3538605 | I38: 304.6459535 | J38: 194.2220874 | K38: 270.6820465
A39: 035 | B39: NH | C39: LITTLETON | D39: 284.4730015 | E39: 294.4196099 | F39: 187.7024479 | G39: 261.595802 | H39: 284.4730015 | I39: 294.4196099 | J39: 187.7024479 | K39: 261.595802
A40: 036 | B40: NH | C40: CHARLESTON | D40: 292.8060776 | E40: 303.0440524 | F40: 193.2008214 | G40: 269.2587357 | H40: 292.8060776 | I40: 303.0440524 | J40: 193.2008214 | K40: 269.2587357
A41: 037 | B41: NH | C41: CLAREMONT | D41: 291.5036839 | E41: 301.6961204 | F41: 192.3414692 | G41: 268.06108 | H41: 291.5036839 | I41: 301.6961204 | J41: 192.3414692 | K41: 268.06108
A42: 038 | B42: NH | C42: PORTSMOUTH | D42: 303.9308543 | E42: 314.5578072 | F42: 200.5412291 | G42: 279.4888625 | H42: 303.9308543 | I42: 314.5578072 | J42: 200.5412291 | K42: 279.4888625
A43: 039 | B43: ME | C43: KITTERY | D43: 290.0190741 | E43: 300.1596011 | F43: 191.3618863 | G43: 266.6958618 | H43: 290.0190741 | I43: 300.1596011 | J43: 191.3618863 | K43: 266.6958618
A44: 040 | B44: ME | C44: PORTLAND | D44: 306.7674553 | E44: 317.4935901 | F44: 202.4128898 | G44: 282.0973453 | H44: 306.7674553 | I44: 317.4935901 | J44: 202.4128898 | K44: 282.0973453
A45: 041 | B45: ME | C45: PORTLAND | D45: 306.7674553 | E45: 317.4935901 | F45: 202.4128898 | G45: 282.0973453 | H45: 306.7674553 | I45: 317.4935901 | J45: 202.4128898 | K45: 282.0973453
A46: 042 | B46: ME | C46: LEWISTON | D46: 299.6576328 | E46: 310.1351724 | F46: 197.72165 | G46: 275.5592917 | H46: 299.6576328 | I46: 310.1351724 | J46: 197.72165 | K46: 275.5592917
A47: 043 | B47: ME | C47: AUGUSTA | D47: 306.6445466 | E47: 317.3663839 | F47: 202.3317916 | G47: 281.9843208 | H47: 306.6445466 | I47: 317.3663839 | J47: 202.3317916 | K47: 281.9843208
A48: 044 | B48: ME | C48: BANGOR | D48: 296.1953828 | E48: 306.5518647 | F48: 195.4371702 | G48: 272.3754744 | H48: 296.1953828 | I48: 306.5518647 | J48: 195.4371702 | K48: 272.3754744
A49: 045 | B49: ME | C49: BATH | D49: 291.4892638 | E49: 301.6811961 | F49: 192.3319544 | G49: 268.0478195 | H49: 291.4892638 | I49: 301.6811961 | J49: 192.3319544 | K49: 268.0478195
A50: 046 | B50: ME | C50: MACHIAS | D50: 290.2634236 | E50: 300.4124943 | F50: 191.5231142 | G50: 266.9205608 | H50: 290.2634236 | I50: 300.4124943 | J50: 191.5231142 | K50: 266.9205608
A51: 047 | B51: ME | C51: HOULTON | D51: 290.6911551 | E51: 300.8551815 | F51: 191.8053422 | G51: 267.3138944 | H51: 290.6911551 | I51: 300.8551815 | J51: 191.8053422 | K51: 267.3138944
A52: 048 | B52: ME | C52: ROCKLAND | D52: 288.8694837 | E52: 298.9698153 | F52: 190.6033576 | G52: 265.638721 | H52: 288.8694837 | I52: 298.9698153 | J52: 190.6033576 | K52: 265.638721
A53: 049 | B53: ME | C53: WATERVILLE | D53: 290.9987475 | E53: 301.1735289 | F53: 192.0082995 | G53: 267.5967504 | H53: 290.9987475 | I53: 301.1735289 | J53: 192.0082995 | K53: 267.5967504
A54: 050 | B54: VT | C54: WHITE RIVER JCT. | D54: 288.9466708 | E54: 299.0497012 | F54: 190.6542876 | G54: 265.7097008 | H54: 288.9466708 | I54: 299.0497012 | J54: 190.6542876 | K54: 265.7097008
A55: 051 | B55: VT | C55: BELLOWS FALLS | D55: 299.442 | E55: 309.912 | F55: 197.57937 | G55: 275.361 | H55: 299.442 | I55: 309.912 | J55: 197.57937 | K55: 275.361
A56: 052 | B56: VT | C56: BENNINGTON | D56: 296.1007728 | E56: 306.4539466 | F56: 195.3747442 | G56: 272.2884729 | H56: 296.1007728 | I56: 306.4539466 | J56: 195.3747442 | K56: 272.2884729
A57: 053 | B57: VT | C57: BRATTLEBORO | D57: 301.0941573 | E57: 311.621925 | F57: 198.6695049 | G57: 276.8802915 | H57: 301.0941573 | I57: 311.621925 | J57: 198.6695049 | K57: 276.8802915
A58: 054 | B58: VT | C58: BURLINGTON | D58: 304.9954986 | E58: 315.6596769 | F58: 201.2437082 | G58: 280.4678886 | H58: 304.9954986 | I58: 315.6596769 | J58: 201.2437082 | K58: 280.4678886
A59: 056 | B59: VT | C59: MONTPELIER | D59: 305.3431158 | E59: 316.0194485 | F59: 201.4730748 | G59: 280.7875506 | H59: 305.3431158 | I59: 316.0194485 | J59: 201.4730748 | K59: 280.7875506
A60: 057 | B60: VT | C60: RUTLAND | D60: 297.8385024 | E60: 308.252436 | F60: 196.5213419 | G60: 273.886455 | H60: 297.8385024 | I60: 308.252436 | J60: 196.5213419 | K60: 273.886455
A61: 058 | B61: VT | C61: ST. JOHNSBURY | D61: 288.7324042 | E61: 298.8279428 | F61: 190.5129091 | G61: 265.5126654 | H61: 288.7324042 | I61: 298.8279428 | J61: 190.5129091 | K61: 265.5126654
A62: 059 | B62: VT | C62: GUILDHALL | D62: 286.4646468 | E62: 296.4808932 | F62: 189.0165856 | G62: 263.4272801 | H62: 286.4646468 | I62: 296.4808932 | J62: 189.0165856 | K62: 263.4272801
A63: 060 | B63: CT | C63: NEW BRITAIN | D63: 342.7258421 | E63: 354.7092632 | F63: 226.1391387 | G63: 315.1639737 | H63: 342.7258421 | I63: 354.7092632 | J63: 226.1391387 | K63: 315.1639737
A64: 061 | B64: CT | C64: HARTFORD | D64: 348.0894341 | E64: 360.2603933 | F64: 229.6781717 | G64: 320.0962278 | H64: 348.0894341 | I64: 360.2603933 | J64: 229.6781717 | K64: 320.0962278
A65: 062 | B65: CT | C65: WILLIMANTIC | D65: 342.9243707 | E65: 354.9147333 | F65: 226.2701328 | G65: 315.3465367 | H65: 342.9243707 | I65: 354.9147333 | J65: 226.2701328 | K65: 315.3465367
A66: 063 | B66: CT | C66: NEW LONDON | D66: 334.925716 | E66: 346.6364054 | F66: 220.9924191 | G66: 307.9911305 | H66: 334.925716 | I66: 346.6364054 | J66: 220.9924191 | K66: 307.9911305
A67: 064 | B67: CT | C67: MERIDEN | D67: 338.8792036 | E67: 350.7281268 | F67: 223.6010297 | G67: 311.6266802 | H67: 338.8792036 | I67: 350.7281268 | J67: 223.6010297 | K67: 311.6266802
A68: 065 | B68: CT | C68: NEW HAVEN | D68: 345.6211458 | E68: 357.7058013 | F68: 228.049533 | G68: 317.8264383 | H68: 345.6211458 | I68: 357.7058013 | J68: 228.049533 | K68: 317.8264383
A69: 066 | B69: CT | C69: BRIDGEPORT | D69: 344.7631756 | E69: 356.8178321 | F69: 227.4834226 | G69: 317.0374656 | H69: 344.7631756 | I69: 356.8178321 | J69: 227.4834226 | K69: 317.0374656
A70: 067 | B70: CT | C70: WATERBURY | D70: 344.6104425 | E70: 356.6597586 | F70: 227.3826455 | G70: 316.8970153 | H70: 344.6104425 | I70: 356.6597586 | J70: 227.3826455 | K70: 316.8970153
A71: 068 | B71: CT | C71: NORWALK | D71: 344.1042444 | E71: 356.1358613 | F71: 227.0486432 | G71: 316.4315254 | H71: 344.1042444 | I71: 356.1358613 | J71: 227.0486432 | K71: 316.4315254
A72: 069 | B72: CT | C72: STAMFORD | D72: 345.1869474 | E72: 357.2564211 | F72: 227.7630379 | G72: 317.4271579 | H72: 345.1869474 | I72: 357.2564211 | J72: 227.7630379 | K72: 317.4271579
A73: 070 | B73: NJ | C73: NEWARK | D73: 375.4054668 | E73: 388.5315321 | F73: 247.7019778 | G73: 345.2155167 | H73: 375.4054668 | I73: 388.5315321 | J73: 247.7019778 | K73: 345.2155167
A74: 071 | B74: NJ | C74: NEWARK | D74: 375.4054668 | E74: 388.5315321 | F74: 247.7019778 | G74: 345.2155167 | H74: 375.4054668 | I74: 388.5315321 | J74: 247.7019778 | K74: 345.2155167
A75: 072 | B75: NJ | C75: ELIZABETH | D75: 366.1949776 | E75: 378.9989978 | F75: 241.6246651 | G75: 336.7457311 | H75: 366.1949776 | I75: 378.9989978 | J75: 241.6246651 | K75: 336.7457311
A76: 073 | B76: NJ | C76: JERSEY CITY | D76: 366.9483335 | E76: 379.7786948 | F76: 242.1217483 | G76: 337.4385024 | H76: 366.9483335 | I76: 379.7786948 | J76: 242.1217483 | K76: 337.4385024
A77: 074 | B77: NJ | C77: PATERSON | D77: 369.6757339 | E77: 382.6014589 | F77: 243.9213558 | G77: 339.9465665 | H77: 369.6757339 | I77: 382.6014589 | J77: 243.9213558 | K77: 339.9465665
A78: 075 | B78: NJ | C78: PATERSON | D78: 369.6757339 | E78: 382.6014589 | F78: 243.9213558 | G78: =K78 -> 339.9465665 | H78: 369.6757339 | I78: 382.6014589 | J78: 243.9213558 | K78: 339.9465665
A79: 076 | B79: NJ | C79: HACKENSACK | D79: =H79 -> 363.6523381 | E79: 376.3674548 | F79: 239.9469676 | G79: 334.4075697 | H79: 363.6523381 | I79: 376.3674548 | J79: 239.9469676 | K79: 334.4075697
A80: 077 | B80: NJ | C80: LONG BRANCH | D80: 349.1863715 | E80: 361.3956851 | F80: 230.4019586 | G80: 321.10495 | H80: 349.1863715 | I80: 361.3956851 | J80: 230.4019586 | K80: 321.10495
A81: 078 | B81: NJ | C81: DOVER | D81: 363.9437925 | E81: 376.6691 | F81: 240.1392765 | G81: 334.6755854 | H81: 363.9437925 | I81: 376.6691 | J81: 240.1392765 | K81: 334.6755854
A82: 079 | B82: NJ | C82: SUMMIT | D82: 362.3211429 | E82: 374.9897143 | F82: 239.0686114 | G82: 333.1834286 | H82: 362.3211429 | I82: 374.9897143 | J82: 239.0686114 | K82: 333.1834286
A83: 080 | B83: NJ | C83: VINELAND | D83: 349.5098054 | E83: 361.730428 | F83: 230.6153685 | G83: 321.4023735 | H83: 349.5098054 | I83: 361.730428 | J83: 230.6153685 | K83: 321.4023735
A84: 081 | B84: NJ | C84: CAMDEN | D84: 368.2453333 | E84: 381.1210443 | F84: 242.9775414 | G84: 338.6311981 | H84: 368.2453333 | I84: 381.1210443 | J84: 242.9775414 | K84: 338.6311981
A85: 082 | B85: NJ | C85: ATLANTIC CITY | D85: 363.3810188 | E85: 376.0866488 | F85: 239.7679442 | G85: 334.1580697 | H85: 363.3810188 | I85: 376.0866488 | J85: 239.7679442 | K85: 334.1580697
A86: 083 | B86: NJ | C86: VINELAND | D86: 344.0215243 | E86: 356.0502489 | F86: 226.9940624 | G86: 316.3554577 | H86: 344.0215243 | I86: 356.0502489 | J86: 226.9940624 | K86: 316.3554577
A87: 084 | B87: NJ | C87: ATLANTIC CITY | D87: 363.3810188 | E87: 376.0866488 | F87: 239.7679442 | G87: 334.1580697 | H87: 363.3810188 | I87: 376.0866488 | J87: 239.7679442 | K87: 334.1580697
A88: 085 | B88: NJ | C88: TRENTON | D88: 369.0721351 | E88: 381.9767552 | F88: 243.523086 | G88: 339.3915088 | H88: 369.0721351 | I88: 381.9767552 | J88: 243.523086 | K88: 339.3915088
A89: 086 | B89: NJ | C89: TRENTON | D89: 369.0721351 | E89: 381.9767552 | F89: 243.523086 | G89: 339.3915088 | H89: 369.0721351 | I89: 381.9767552 | J89: 243.523086 | K89: 339.3915088
A90: 087 | B90: NJ | C90: POINT PLEASANT | D90: 354.2448959 | E90: 366.6310811 | F90: 233.7397004 | G90: 325.75667 | H90: 354.2448959 | I90: 366.6310811 | J90: 233.7397004 | K90: 325.75667
A91: 088 | B91: NJ | C91: NEW BRUNSWICK | D91: 363.3157277 | E91: 376.0190748 | F91: 239.7248636 | G91: 334.0980293 | H91: 363.3157277 | I91: 376.0190748 | J91: 239.7248636 | K91: 334.0980293
A92: 089 | B92: NJ | C92: NEW BRUNSWICK | D92: 363.3157277 | E92: 376.0190748 | F92: 239.7248636 | G92: 334.0980293 | H92: 363.3157277 | I92: 376.0190748 | J92: 239.7248636 | K92: 334.0980293
A93: 100 | B93: NY | C93: NEW YORK | D93: 419.254735 | E93: 433.9139915 | F93: 276.6348288 | G93: 385.5384451 | H93: 419.254735 | I93: 433.9139915 | J93: 276.6348288 | K93: 385.5384451
A94: 101 | B94: NY | C94: NEW YORK | D94: 419.254735 | E94: 433.9139915 | F94: 276.6348288 | G94: 385.5384451 | H94: 419.254735 | I94: 433.9139915 | J94: 276.6348288 | K94: 385.5384451
A95: 102 | B95: NY | C95: NEW YORK | D95: 419.254735 | E95: 433.9139915 | F95: 276.6348288 | G95: 385.5384451 | H95: 419.254735 | I95: 433.9139915 | J95: 276.6348288 | K95: 385.5384451
A96: 103 | B96: NY | C96: STATEN ISLAND | D96: 397.6312463 | E96: 411.5344367 | F96: 262.3671066 | G96: 365.6539083 | H96: 397.6312463 | I96: 411.5344367 | J96: 262.3671066 | K96: 365.6539083
A97: 104 | B97: NY | C97: BRONX | D97: 394.5329664 | E97: 408.3278254 | F97: 260.3227835 | G97: 362.8047908 | H97: 394.5329664 | I97: 408.3278254 | J97: 260.3227835 | K97: 362.8047908
A98: 105 | B98: NY | C98: MOUNT VERNON | D98: 365.4298956 | E98: 378.2071647 | F98: 241.1198447 | G98: 336.0421767 | H98: 365.4298956 | I98: 378.2071647 | J98: 241.1198447 | K98: 336.0421767
A99: 106 | B99: NY | C99: WHITE PLAINS | D99: 370.656 | E99: 383.616 | F99: 244.56816 | G99: 340.848 | H99: 370.656 | I99: 383.616 | J99: 244.56816 | K99: 340.848
A100: 107 | B100: NY | C100: YONKERS | D100: 381.81 | E100: 395.16 | F100: 251.92785 | G100: 351.105 | H100: 381.81 | I100: 395.16 | J100: 251.92785 | K100: 351.105
A101: 108 | B101: NY | C101: NEW ROCHELLE | D101: 359.7584101 | E101: 372.3373755 | F101: 237.3776559 | G101: 330.8267897 | H101: 359.7584101 | I101: 372.3373755 | J101: 237.3776559 | K101: 330.8267897
A102: 109 | B102: NY | C102: SUFFERN | D102: 335.496924 | E102: 347.2275857 | F102: 221.3693165 | G102: 308.5164021 | H102: 335.496924 | I102: 347.2275857 | J102: 221.3693165 | K102: 308.5164021
A103: 110 | B103: NY | C103: QUEENS | D103: 412.8097274 | E103: 427.243634 | F103: 272.3822506 | G103: 379.6117424 | H103: 412.8097274 | I103: 427.243634 | J103: 272.3822506 | K103: 379.6117424
A104: 111 | B104: NY | C104: LONG ISLAND CITY | D104: 415.8628885 | E104: 430.403549 | F104: 274.3968031 | G104: 382.4193695 | H104: 415.8628885 | I104: 430.403549 | J104: 274.3968031 | K104: 382.4193695
A105: 112 | B105: NY | C105: BROOKLYN | D105: 417.1783906 | E105: 431.7650476 | F105: 275.2648045 | G105: 383.6290795 | H105: 417.1783906 | I105: 431.7650476 | J105: 275.2648045 | K105: 383.6290795
A106: 113 | B106: NY | C106: FLUSHING | D106: 415.6280746 | E106: 430.1605248 | F106: 274.241867 | G106: 382.2034392 | H106: 415.6280746 | I106: 430.1605248 | J106: 274.241867 | K106: 382.2034392
A107: 114 | B107: NY | C107: JAMAICA | D107: 412.4528571 | E107: 426.8742857 | F107: 272.1467786 | G107: 379.2835714 | H107: 412.4528571 | I107: 426.8742857 | J107: 272.1467786 | K107: 379.2835714
A108: 115 | B108: NY | C108: HICKSVILLE | D108: 387.7052903 | E108: 401.2614194 | F108: 255.817711 | G108: 356.5261935 | H108: 387.7052903 | I108: 401.2614194 | J108: 255.817711 | K108: 356.5261935
A109: 116 | B109: NY | C109: FAR ROCKAWAY | D109: 415.4835591 | E109: 430.0109563 | F109: 274.146512 | G109: 382.0705456 | H109: 415.4835591 | I109: 430.0109563 | J109: 274.146512 | K109: 382.0705456
A110: 117 | B110: NY | C110: HICKSVILLE | D110: 359.175563 | E110: 371.7341491 | F110: 236.9930786 | G110: 330.2908149 | H110: 359.175563 | I110: 371.7341491 | J110: 236.9930786 | K110: 330.2908149
A111: 118 | B111: NY | C111: HICKSVILLE | D111: 359.175563 | E111: 371.7341491 | F111: 236.9930786 | G111: 330.2908149 | H111: 359.175563 | I111: 371.7341491 | J111: 236.9930786 | K111: 330.2908149
A112: 119 | B112: NY | C112: RIVERHEAD | D112: 395.599965 | E112: 409.4321316 | F112: 261.0268161 | G112: 363.7859818 | H112: 395.599965 | I112: 409.4321316 | J112: 261.0268161 | K112: 363.7859818
A113: 120 | B113: NY | C113: ALBANY | D113: 336.3252301 | E113: 348.0848536 | F113: 221.9158538 | G113: 309.2780962 | H113: 336.3252301 | I113: 348.0848536 | J113: 221.9158538 | K113: 309.2780962
A114: 121 | B114: NY | C114: ALBANY | D114: 336.3252301 | E114: 348.0848536 | F114: 221.9158538 | G114: 309.2780962 | H114: 336.3252301 | I114: 348.0848536 | J114: 221.9158538 | K114: 309.2780962
A115: 122 | B115: NY | C115: ALBANY | D115: 336.3252301 | E115: 348.0848536 | F115: 221.9158538 | G115: 309.2780962 | H115: 336.3252301 | I115: 348.0848536 | J115: 221.9158538 | K115: 309.2780962
A116: 123 | B116: NY | C116: SCHENECTADY | D116: 335.1753037 | E116: 346.8947199 | F116: 221.1571033 | G116: 308.2206464 | H116: 335.1753037 | I116: 346.8947199 | J116: 221.1571033 | K116: 308.2206464
A117: 124 | B117: NY | C117: KINGSTON | D117: 358.8563529 | E117: 371.4037778 | F117: 236.7824558 | G117: 329.9972755 | H117: 358.8563529 | I117: 371.4037778 | J117: 236.7824558 | K117: 329.9972755
A118: 125 | B118: NY | C118: POUGHKEEPSIE | D118: 360.8951174 | E118: 373.5138278 | F118: 238.1276839 | G118: 331.8720835 | H118: 360.8951174 | I118: 373.5138278 | J118: 238.1276839 | K118: 331.8720835
A119: 126 | B119: NY | C119: POUGHKEEPSIE | D119: 360.8951174 | E119: 373.5138278 | F119: 238.1276839 | G119: 331.8720835 | H119: 360.8951174 | I119: 373.5138278 | J119: 238.1276839 | K119: 331.8720835
A120: 127 | B120: NY | C120: MONTICELLO | D120: 357.1731429 | E120: 369.6617143 | F120: 235.6718314 | G120: 328.4494286 | H120: 357.1731429 | I120: 369.6617143 | J120: 235.6718314 | K120: 328.4494286
A121: 128 | B121: NY | C121: GLENS FALLS | D121: 311.5126987 | E121: 322.4047511 | F121: 205.5439209 | G121: 286.4609782 | H121: 311.5126987 | I121: 322.4047511 | J121: 205.5439209 | K121: 286.4609782
A122: 129 | B122: NY | C122: PLATTSBURGH | D122: 306.9643468 | E122: 317.6973659 | F122: 202.5428038 | G122: 282.2784028 | H122: 306.9643468 | I122: 317.6973659 | J122: 202.5428038 | K122: 282.2784028
A123: 130 | B123: NY | C123: SYRACUSE | D123: 323.9479816 | E123: 335.2748341 | F123: 213.7490336 | G123: 297.8962208 | H123: 323.9479816 | I123: 335.2748341 | J123: 213.7490336 | K123: 297.8962208
A124: 131 | B124: NY | C124: SYRACUSE | D124: 323.9479816 | E124: 335.2748341 | F124: 213.7490336 | G124: 297.8962208 | H124: 323.9479816 | I124: 335.2748341 | J124: 213.7490336 | K124: 297.8962208
A125: 132 | B125: NY | C125: SYRACUSE | D125: 323.9479816 | E125: 335.2748341 | F125: 213.7490336 | G125: 297.8962208 | H125: 323.9479816 | I125: 335.2748341 | J125: 213.7490336 | K125: 297.8962208
A126: 133 | B126: NY | C126: UTICA | D126: 321.2538488 | E126: 332.4865009 | F126: 211.971377 | G126: 295.4187491 | H126: 321.2538488 | I126: 332.4865009 | J126: 211.971377 | K126: 295.4187491
A127: 134 | B127: NY | C127: UTICA | D127: 321.2538488 | E127: 332.4865009 | F127: 211.971377 | G127: 295.4187491 | H127: 321.2538488 | I127: 332.4865009 | J127: 211.971377 | K127: 295.4187491
A128: 135 | B128: NY | C128: UTICA | D128: 321.2538488 | E128: 332.4865009 | F128: 211.971377 | G128: 295.4187491 | H128: 321.2538488 | I128: 332.4865009 | J128: 211.971377 | K128: 295.4187491
A129: 136 | B129: NY | C129: WATERTOWN | D129: 318.7509195 | E129: 329.8960566 | F129: 210.3198812 | G129: 293.1171043 | H129: 318.7509195 | I129: 329.8960566 | J129: 210.3198812 | K129: 293.1171043
A130: 137 | B130: NY | C130: BINGHAMTON | D130: 321.4625098 | E130: 332.7024577 | F130: 212.1090567 | G130: 295.6106296 | H130: 321.4625098 | I130: 332.7024577 | J130: 212.1090567 | K130: 295.6106296
A131: 138 | B131: NY | C131: BINGHAMTON | D131: 321.4625098 | E131: 332.7024577 | F131: 212.1090567 | G131: 295.6106296 | H131: 321.4625098 | I131: 332.7024577 | J131: 212.1090567 | K131: 295.6106296
A132: 139 | B132: NY | C132: BINGHAMTON | D132: 321.4625098 | E132: 332.7024577 | F132: 212.1090567 | G132: 295.6106296 | H132: 321.4625098 | I132: 332.7024577 | J132: 212.1090567 | K132: 295.6106296
A133: 140 | B133: NY | C133: BUFFALO | D133: 345.6884804 | E133: 357.7754902 | F133: 228.093962 | G133: 317.8883578 | H133: 345.6884804 | I133: 357.7754902 | J133: 228.093962 | K133: 317.8883578
A134: 141 | B134: NY | C134: BUFFALO | D134: 345.6884804 | E134: 357.7754902 | F134: 228.093962 | G134: 317.8883578 | H134: 345.6884804 | I134: 357.7754902 | J134: 228.093962 | K134: 317.8883578
A135: 142 | B135: NY | C135: BUFFALO | D135: 345.6884804 | E135: 357.7754902 | F135: 228.093962 | G135: 317.8883578 | H135: 345.6884804 | I135: 357.7754902 | J135: 228.093962 | K135: 317.8883578
A136: 143 | B136: NY | C136: NIAGARA FALLS | D136: 323.6654983 | E136: 334.9824738 | F136: 213.562644 | G136: 297.6364547 | H136: 323.6654983 | I136: 334.9824738 | J136: 213.562644 | K136: 297.6364547
A137: 144 | B137: NY | C137: ROCHESTER | D137: 331.9917118 | E137: 343.5998136 | F137: 219.0564893 | G137: 305.2930777 | H137: 331.9917118 | I137: 343.5998136 | J137: 219.0564893 | K137: 305.2930777
A138: 145 | B138: NY | C138: ROCHESTER | D138: 331.9917118 | E138: 343.5998136 | F138: 219.0564893 | G138: 305.2930777 | H138: 331.9917118 | I138: 343.5998136 | J138: 219.0564893 | K138: 305.2930777
A139: 146 | B139: NY | C139: ROCHESTER | D139: 331.9917118 | E139: 343.5998136 | F139: 219.0564893 | G139: 305.2930777 | H139: 331.9917118 | I139: 343.5998136 | J139: 219.0564893 | K139: 305.2930777
A140: 147 | B140: NY | C140: JAMESTOWN | D140: 307.9143189 | E140: 318.6805538 | F140: 203.1696193 | G140: 283.1519786 | H140: 307.9143189 | I140: 318.6805538 | J140: 203.1696193 | K140: 283.1519786
A141: 148 | B141: NY | C141: ELMIRA | D141: 322.2285742 | E141: 333.4953075 | F141: 212.6145253 | G141: 296.3150874 | H141: 322.2285742 | I141: 333.4953075 | J141: 212.6145253 | K141: 296.3150874
A142: 149 | B142: NY | C142: ELMIRA | D142: 322.2285742 | E142: 333.4953075 | F142: 212.6145253 | G142: 296.3150874 | H142: 322.2285742 | I142: 333.4953075 | J142: 212.6145253 | K142: 296.3150874
A143: 150 | B143: PA | C143: PITTSBURGH | D143: =H143 -> 330.423472 | E143: 341.9767402 | F143: 218.0217252 | G143: 303.850955 | H143: 330.423472 | I143: 341.9767402 | J143: 218.0217252 | K143: 303.850955
A144: 151 | B144: PA | C144: PITTSBURGH | D144: 330.423472 | E144: 341.9767402 | F144: 218.0217252 | G144: 303.850955 | H144: 330.423472 | I144: 341.9767402 | J144: 218.0217252 | K144: 303.850955
A145: 152 | B145: PA | C145: PITTSBURGH | D145: 330.423472 | E145: 341.9767402 | F145: 218.0217252 | G145: 303.850955 | H145: 330.423472 | I145: 341.9767402 | J145: 218.0217252 | K145: 303.850955
A146: 153 | B146: PA | C146: WASHINGTON | D146: 314.886 | E146: 325.896 | F146: 207.76971 | G146: 289.563 | H146: 314.886 | I146: 325.896 | J146: 207.76971 | K146: 289.563
A147: 154 | B147: PA | C147: UNIONTOWN | D147: 312.1395754 | E147: 323.0535465 | F147: 205.9575499 | G147: 287.0374417 | H147: 312.1395754 | I147: 323.0535465 | J147: 205.9575499 | K147: 287.0374417
A148: 155 | B148: PA | C148: BEDFORD | D148: 302.4289542 | E148: 313.0033932 | F148: 199.5502376 | G148: 278.1077446 | H148: 302.4289542 | I148: 313.0033932 | J148: 199.5502376 | K148: 278.1077446
A149: 156 | B149: PA | C149: GREENSBURG | D149: 309.5658704 | E149: 320.3898519 | F149: 204.2593545 | G149: 284.670713 | H149: 309.5658704 | I149: 320.3898519 | J149: 204.2593545 | K149: 284.670713
A150: 157 | B150: PA | C150: INDIANA | D150: 308.1578721 | E150: 318.9326228 | F150: 203.3303218 | G150: 283.3759453 | H150: 308.1578721 | I150: 318.9326228 | J150: 203.3303218 | K150: 283.3759453
A151: 158 | B151: PA | C151: DUBOIS | D151: 307.9897746 | E151: 318.7586479 | F151: 203.2194069 | G151: 283.2213662 | H151: 307.9897746 | I151: 318.7586479 | J151: 203.2194069 | K151: 283.2213662
A152: 159 | B152: PA | C152: JOHNSTOWN | D152: 312.1310507 | E152: 323.0447238 | F152: 205.9519251 | G152: 287.0296026 | H152: 312.1310507 | I152: 323.0447238 | J152: 205.9519251 | K152: 287.0296026
A153: 160 | B153: PA | C153: BUTLER | D153: 302.4292403 | E153: 313.0036893 | F153: 199.5504263 | G153: 278.1080077 | H153: 302.4292403 | I153: 313.0036893 | J153: 199.5504263 | K153: 278.1080077
A154: 161 | B154: PA | C154: NEW CASTLE | D154: 303.2274787 | E154: 313.8298381 | F154: 200.0771242 | G154: 278.8420521 | H154: 303.2274787 | I154: 313.8298381 | J154: 200.0771242 | K154: 278.8420521
A155: 162 | B155: PA | C155: KITTANNING | D155: 301.1414448 | E155: 311.670866 | F155: 198.7007065 | G155: 276.9237762 | H155: 301.1414448 | I155: 311.670866 | J155: 198.7007065 | K155: 276.9237762
A156: 163 | B156: PA | C156: OIL CITY | D156: 297.1584483 | E156: 307.5486038 | F156: 196.0726251 | G156: 273.2610906 | H156: 297.1584483 | I156: 307.5486038 | J156: 196.0726251 | K156: 273.2610906
A157: 164 | B157: PA | C157: ERIE | D157: 305.4369443 | E157: 316.1165578 | F157: 201.5349852 | G157: 280.8738334 | H157: 305.4369443 | I157: 316.1165578 | J157: 201.5349852 | K157: 280.8738334
A158: 165 | B158: PA | C158: ERIE | D158: 305.4369443 | E158: 316.1165578 | F158: 201.5349852 | G158: 280.8738334 | H158: 305.4369443 | I158: 316.1165578 | J158: 201.5349852 | K158: 280.8738334
A159: 166 | B159: PA | C159: ALTOONA | D159: 306.0041405 | E159: 316.703586 | F159: 201.9092355 | G159: 281.3954159 | H159: 306.0041405 | I159: 316.703586 | J159: 201.9092355 | K159: 281.3954159
A160: 167 | B160: PA | C160: BRADFORD | D160: 304.7865768 | E160: 315.4434501 | F160: 201.1058563 | G160: 280.2757682 | H160: 304.7865768 | I160: 315.4434501 | J160: 201.1058563 | K160: 280.2757682
A161: 168 | B161: PA | C161: STATE COLLEGE | D161: 309.2944214 | E161: 320.1089116 | F161: 204.0802457 | G161: 284.4210938 | H161: 309.2944214 | I161: 320.1089116 | J161: 204.0802457 | K161: 284.4210938
A162: 169 | B162: PA | C162: WELLSBORO | D162: 298.3201604 | E162: 308.7509353 | F162: 196.839152 | G162: 274.3293783 | H162: 298.3201604 | I162: 308.7509353 | J162: 196.839152 | K162: 274.3293783
A163: 170 | B163: PA | C163: HARRISBURG | D163: 321.0318222 | E163: 332.2567111 | F163: 211.8248782 | G163: 295.2145778 | H163: 321.0318222 | I163: 332.2567111 | J163: 211.8248782 | K163: 295.2145778
A164: 171 | B164: PA | C164: HARRISBURG | D164: 321.0318222 | E164: 332.2567111 | F164: 211.8248782 | G164: 295.2145778 | H164: 321.0318222 | I164: 332.2567111 | J164: 211.8248782 | K164: 295.2145778
A165: 172 | B165: PA | C165: CHAMBERSBURG | D165: 294.0944249 | E165: 304.3774468 | F165: 194.0509053 | G165: 270.4434747 | H165: 294.0944249 | I165: 304.3774468 | J165: 194.0509053 | K165: 270.4434747
A166: 173 | B166: PA | C166: YORK | D166: 308.068522 | E166: 318.8401486 | F166: 203.2713664 | G166: 283.2937807 | H166: 308.068522 | I166: 318.8401486 | J166: 203.2713664 | K166: 283.2937807
A167: 174 | B167: PA | C167: YORK | D167: 308.068522 | E167: 318.8401486 | F167: 203.2713664 | G167: 283.2937807 | H167: 308.068522 | I167: 318.8401486 | J167: 203.2713664 | K167: 283.2937807
A168: 175 | B168: PA | C168: LANCASTER | D168: 307.27393 | E168: 318.0177737 | F168: 202.7470746 | G168: 282.5630895 | H168: 307.27393 | I168: 318.0177737 | J168: 202.7470746 | K168: 282.5630895
A169: 176 | B169: PA | C169: LANCASTER | D169: 307.27393 | E169: 318.0177737 | F169: 202.7470746 | G169: 282.5630895 | H169: 307.27393 | I169: 318.0177737 | J169: 202.7470746 | K169: 282.5630895
A170: 177 | B170: PA | C170: WILLIAMSPORT | D170: 299.9028518 | E170: 310.3889655 | F170: 197.8834516 | G170: 275.7847903 | H170: 299.9028518 | I170: 310.3889655 | J170: 197.8834516 | K170: 275.7847903
A171: 178 | B171: PA | C171: SUNBURY | D171: 297.3582857 | E171: 307.7554286 | F171: 196.2044829 | G171: 273.4448571 | H171: 297.3582857 | I171: 307.7554286 | J171: 196.2044829 | K171: 273.4448571
A172: 179 | B172: PA | C172: POTTSVILLE | D172: 299.8235503 | E172: 310.3068912 | F172: 197.8311265 | G172: 275.7118662 | H172: 299.8235503 | I172: 310.3068912 | J172: 197.8311265 | K172: 275.7118662
A173: 180 | B173: PA | C173: LEHIGH VALLEY | D173: 320.3692354 | E173: 331.570957 | F173: 211.3876868 | G173: 294.6052759 | H173: 320.3692354 | I173: 331.570957 | J173: 211.3876868 | K173: 294.6052759
A174: 181 | B174: PA | C174: ALLENTOWN | D174: 328.0831018 | E174: 339.5545389 | F174: 216.47749 | G174: 301.6987964 | H174: 328.0831018 | I174: 339.5545389 | J174: 216.47749 | K174: 301.6987964
A175: 182 | B175: PA | C175: HAZLETON | D175: 300.5266757 | E175: 311.0346014 | F175: 198.2950663 | G175: 276.3584466 | H175: 300.5266757 | I175: 311.0346014 | J175: 198.2950663 | K175: 276.3584466
A176: 183 | B176: PA | C176: STROUDSBURG | D176: 310.9185292 | E176: 321.7898065 | F176: 205.1518729 | G176: 285.9145915 | H176: 310.9185292 | I176: 321.7898065 | J176: 205.1518729 | K176: 285.9145915
A177: 184 | B177: PA | C177: SCRANTON | D177: 316.0533366 | E177: 327.1041525 | F177: 208.5399481 | G177: 290.6364599 | H177: 316.0533366 | I177: 327.1041525 | J177: 208.5399481 | K177: 290.6364599
A178: 185 | B178: PA | C178: SCRANTON | D178: 316.0533366 | E178: 327.1041525 | F178: 208.5399481 | G178: 290.6364599 | H178: 316.0533366 | I178: 327.1041525 | J178: 208.5399481 | K178: 290.6364599
A179: 186 | B179: PA | C179: WILKES-BARRE | D179: 305.61687 | E179: 316.3027745 | F179: 201.6537047 | G179: 281.0392895 | H179: 305.61687 | I179: 316.3027745 | J179: 201.6537047 | K179: 281.0392895
A180: 187 | B180: PA | C180: WILKES-BARRE | D180: 305.61687 | E180: 316.3027745 | F180: 201.6537047 | G180: 281.0392895 | H180: 305.61687 | I180: 316.3027745 | J180: 201.6537047 | K180: 281.0392895
A181: 188 | B181: PA | C181: MONTROSE | D181: 300.6944471 | E181: 311.2082389 | F181: 198.4057661 | G181: 276.5127258 | H181: 300.6944471 | I181: 311.2082389 | J181: 198.4057661 | K181: 276.5127258
A182: 189 | B182: PA | C182: DOYLESTOWN | D182: 336.8047254 | E182: 348.5811144 | F182: 222.2322368 | G182: 309.7190307 | H182: 336.8047254 | I182: 348.5811144 | J182: 222.2322368 | K182: 309.7190307
A183: 190 | B183: PA | C183: PHILADELPHIA | D183: 374.5943502 | E183: 387.6920548 | F183: 247.1667826 | G183: 344.4696298 | H183: 374.5943502 | I183: 387.6920548 | J183: 247.1667826 | K183: 344.4696298
A184: 191 | B184: PA | C184: PHILADELPHIA | D184: 374.5943502 | E184: 387.6920548 | F184: 247.1667826 | G184: 344.4696298 | H184: 374.5943502 | I184: 387.6920548 | J184: 247.1667826 | K184: 344.4696298
A185: 193 | B185: PA | C185: WESTCHESTER | D185: 341.1162857 | E185: 353.0434286 | F185: 225.0771129 | G185: 313.6838571 | H185: 341.1162857 | I185: 353.0434286 | J185: 225.0771129 | K185: 313.6838571
A186: 194 | B186: PA | C186: NORRISTOWN | D186: 339.5797914 | E186: 351.4532106 | F186: 224.0632952 | G186: 312.270927 | H186: 339.5797914 | I186: 351.4532106 | J186: 224.0632952 | K186: 312.270927
A187: 195 | B187: PA | C187: READING | D187: 319.7297659 | E187: 330.9091284 | F187: 210.9657487 | G187: 294.0172323 | H187: 319.7297659 | I187: 330.9091284 | J187: 210.9657487 | K187: 294.0172323
A188: 196 | B188: PA | C188: READING | D188: 319.7297659 | E188: 330.9091284 | F188: 210.9657487 | G188: 294.0172323 | H188: 319.7297659 | I188: 330.9091284 | J188: 210.9657487 | K188: 294.0172323
A189: 197 | B189: DE | C189: NEWARK | D189: 335.8346025 | E189: 347.5770711 | F189: 221.5921253 | G189: 308.8269247 | H189: 335.8346025 | I189: 347.5770711 | J189: 221.5921253 | K189: 308.8269247
A190: 198 | B190: DE | C190: WILMINGTON | D190: 337.2033652 | E190: 348.9936927 | F190: 222.4952694 | G190: 310.0856121 | H190: 337.2033652 | I190: 348.9936927 | J190: 222.4952694 | K190: 310.0856121
A191: 199 | B191: DE | C191: DOVER | D191: 338.3814854 | E191: 350.2130058 | F191: 223.2726227 | G191: 311.1689883 | H191: 338.3814854 | I191: 350.2130058 | J191: 223.2726227 | K191: 311.1689883
A192: 200 | B192: DC | C192: WASHINGTON | D192: 314.6876369 | E192: 325.6907012 | F192: 207.6388251 | G192: 289.3805892 | H192: 314.6876369 | I192: 325.6907012 | J192: 207.6388251 | K192: 289.3805892
A193: 201 | B193: DC | C193: WASHINGTON | D193: 314.6876369 | E193: 325.6907012 | F193: 207.6388251 | G193: 289.3805892 | H193: 314.6876369 | I193: 325.6907012 | J193: 207.6388251 | K193: 289.3805892
A194: 202 | B194: DC | C194: WASHINGTON | D194: 314.6876369 | E194: 325.6907012 | F194: 207.6388251 | G194: 289.3805892 | H194: 314.6876369 | I194: 325.6907012 | J194: 207.6388251 | K194: 289.3805892
A195: 203 | B195: DC | C195: WASHINGTON | D195: 314.6876369 | E195: 325.6907012 | F195: 207.6388251 | G195: 289.3805892 | H195: 314.6876369 | I195: 325.6907012 | J195: 207.6388251 | K195: 289.3805892
A196: 204 | B196: DC | C196: WASHINGTON | D196: 314.6876369 | E196: 325.6907012 | F196: 207.6388251 | G196: 289.3805892 | H196: 314.6876369 | I196: 325.6907012 | J196: 207.6388251 | K196: 289.3805892
A197: 205 | B197: DC | C197: WASHINGTON | D197: 314.6876369 | E197: 325.6907012 | F197: 207.6388251 | G197: 289.3805892 | H197: 314.6876369 | I197: 325.6907012 | J197: 207.6388251 | K197: 289.3805892
A198: 206 | B198: MD | C198: WALDORF | D198: 297.3731961 | E198: 307.7708603 | F198: 196.2143211 | G198: 273.4585685 | H198: 297.3731961 | I198: 307.7708603 | J198: 196.2143211 | K198: 273.4585685
A199: 207 | B199: MD | C199: COLLEGE PARK | D199: 297.2042539 | E199: 307.596011 | F199: 196.1028488 | G199: 273.3032125 | H199: 297.2042539 | I199: 307.596011 | J199: 196.1028488 | K199: 273.3032125
A200: 208 | B200: MD | C200: COLLEGE PARK | D200: 297.2042539 | E200: 307.596011 | F200: 196.1028488 | G200: 273.3032125 | H200: 297.2042539 | I200: 307.596011 | J200: 196.1028488 | K200: 273.3032125
A201: 209 | B201: MD | C201: SILVER SPRING | D201: 295.5965348 | E201: 305.932078 | F201: 195.0420353 | G201: 271.8247855 | H201: 295.5965348 | I201: 305.932078 | J201: 195.0420353 | K201: 271.8247855
A202: 210 | B202: MD | C202: BALTIMORE | D202: 306.2767203 | E202: 316.9856965 | F202: 202.0890905 | G202: 281.646075 | H202: 306.2767203 | I202: 316.9856965 | J202: 202.0890905 | K202: 281.646075
A203: 211 | B203: MD | C203: BALTIMORE | D203: 306.2767203 | E203: 316.9856965 | F203: 202.0890905 | G203: 281.646075 | H203: 306.2767203 | I203: 316.9856965 | J203: 202.0890905 | K203: 281.646075
A204: 212 | B204: MD | C204: BALTIMORE | D204: 306.2767203 | E204: 316.9856965 | F204: 202.0890905 | G204: 281.646075 | H204: 306.2767203 | I204: 316.9856965 | J204: 202.0890905 | K204: 281.646075
A205: 214 | B205: MD | C205: ANNAPOLIS | D205: 302.1227612 | E205: 312.6864941 | F205: 199.3482037 | G205: 277.8261755 | H205: 302.1227612 | I205: 312.6864941 | J205: 199.3482037 | K205: 277.8261755
A206: 215 | B206: MD | C206: CUMBERLAND | D206: 291.8262401 | E206: 302.0299548 | F206: 192.5542999 | G206: =K206 -> 268.3576963 | H206: 291.8262401 | I206: 302.0299548 | J206: 192.5542999 | K206: 268.3576963
A207: 216 | B207: MD | C207: EASTON | D207: =H207 -> 280.8111429 | E207: 290.6297143 | F207: 185.2862614 | G207: 258.2284286 | H207: 280.8111429 | I207: 290.6297143 | J207: 185.2862614 | K207: 258.2284286
A208: 217 | B208: MD | C208: HAGERSTOWN | D208: 299.552 | E208: 310.0258462 | F208: 197.6519508 | G208: 275.4621538 | H208: 299.552 | I208: 310.0258462 | J208: 197.6519508 | K208: 275.4621538
... 714 more rows

Sheet Targeting Self-Score
A1: Rental Projects: Targeting Self-Score
A2: =Targeting!A2:M2 -> Version 5.2 Updated 1/27/22
A4: Project Name | B4: =IF(+Targeting!B5="","",+Targeting!B5) ->  | C4: Proposed No. of Units | D4: Proposed AMI Targets | E4: Proposed No. of Units @ 50% AMI or less | F4: Proposed No. of Units >50% & <=80% AMI | G4: WAAMIT Calc
C5: =+Targeting!R41 -> 0 | D5: 0.5 | E5: =IF(D5="",0,IF(D5<=0.5,C5,0)) -> 0 | F5: =IF(D5>0.5,C5,0) -> 0 | G5: =IF(D5>0.5,C5*D5,0) -> 0
C6: =Targeting!S41 -> 0 | E6: 0 | F6: 0 | G6: 0
A7: Note: | C7: =+Targeting!T41 -> 0 | E7: 0 | F7: 0 | G7: 0
A8: 1. No additional points given for units targeted | C8: =+Targeting!U41 -> 0 | E8: 0 | F8: 0 | G8: 0
A9: below 50% AMI. | C9: =+Targeting!V41 -> 0 | E9: 0 | F9: 0 | G9: 0
C10: =+Targeting!W41 -> 0 | E10: 0 | F10: 0 | G10: 0
A11: 2. In order to score your own project, you must | C11: =+Targeting!X41 -> 0 | E11: 0 | F11: 0 | G11: 0
A12: fill in the AMI target(s) greater than 50% | C12: =SUM(C5:C11) -> 0 | D12: Total Targeted | E12: =SUM(E5:E11) -> 0 | F12: =SUM(F5:F11) -> 0 | G12: =SUM(G5:G11) -> 0
A13: proposed in your Rental Projects Worksheet. | C13: =Targeting!A43 -> 0 | D13: Non-Restricted Manager Units
C14: =Targeting!A44 -> 0 | D14: Non Income-Restricted Special Needs Units
A15: 3. Shaded cells are password protected. | C15: =Targeting!A46 -> 0 | D15: Other Non-Restricted Units
C16: =+C12+C13+C14+C15 -> 0 | D16: Total Units - must match Targeting Worksheet
C17: =COUNTIF(Targeting!N20:N299,"=Fail") -> 0 | D17: Units failing rent cap of 30% income
A19: Step I | C19: Line | D19: Score
A20: Percent of total units at 50% AMI or lower | C20: 1 | D20: =IF($C$16=Targeting!$A$47,IF($C$12>0,+$E$12/$C$16*100,0),"Fill in targeting") -> Fill in targeting
A21: Subtract 20 from line above | C21: 2 | D21: =IF(D20<20,0,IF(C12>0,+D20-20,0)) -> 0
A22: Multiply this percentage by .50 (base score) | C22: 3 | D22: =IF($D$21*0.5>=20,20,$D$21*0.5) -> 0
A24: Step II | C24: Line | D24: Score
A25: Subtract base score from 20 (remaining possible points) | C25: 4 | D25: =IF(D20<20,0,IF(C12>0,20-D22,0)) -> 0
A26: Weighted Average Area Median Income Target (WAAMIT) for units between 50% and 80% AMI | C26: 5 | D26: =IF($D$25>0,IF($F12<=0,0,$G$12/$F$12*100),0) -> 0
A27: Divide remaining possible points by 30 | C27: 6 | D27: =+D25/30 -> 0
A28: Line 5 subtracted from .80 | C28: 7 | D28: =IF(D26>0,80-D26,0) -> 0
A29: Multiply line 6 by line 7 (adjustment) | C29: 8 | D29: =+D28*D27 -> 0
A30: Base score plus adjustment (final score) | C30: 9 | D30: =+D29+D22 -> 0

Sheet Subsidy Per Unit Score (hidden)
A1: Rental Projects: Subsidy Per Unit Score
A2: =Targeting!A2:M2 -> Version 5.2 Updated 1/27/22
A5: Project Name | C5: =IF(+Targeting!B5="","",+Targeting!B5) -> 
A7: Subsidy Requested | D7: =IF('Sources & Uses of Funds'!E94=0,0,'Sources & Uses of Funds'!E94) -> 0 | E7: Line 1
A8: AHP Project Units (income restricted units) | D8: =IF(Targeting!A41="",0,Targeting!A41) -> 0 | E8: Line 2
A9: Subsidy per Unit (line 1 divided by line 2) | D9: =IF(D7=0,0,D7/D8) -> 0 | E9: Line 3
A10: High End of Rental Project Subsidy per Unit Range | D10: 40000 | E10: Line 4
A11: Low End of Rental Project Subsidy per Unit Range | D11: 15000 | E11: Line 5
A13: Step 1: | B13: Determine Subsidy per Unit Range Difference (Subtract line 5 from line 4) | D13: =+D10-D11 -> 25000 | E13: Line 6
A14: Step 2: | B14: Determine Scoring Factor (Divide 7 possible category points by line 6) | D14: =7/D13 -> 0.00028 | E14: Line 7
A15: Step 3: | B15: Subtract line 3 by line 5 | D15: =IF(D9=0,0,D9-D11) -> 0 | E15: Line 8
A16: Step 4: | B16: Multiply line 8 by Scoring Factor | D16: =IF(D15=0,0,+D14*D15) -> 0 | E16: Line 9
A18: Step 5: | B18: Score (7 possible points subtracted by line 9) | D18: =IF(D7=0,0,IF(7-D16>7,7,IF(7-D16<0,"0.00",7-D16))) -> 0

Sheet AHP Application Comparison
I1: AHP Application Comparison | L1: Hidden to prevent data entry; field needs to be unlocked for macro to update
I2: =Targeting!A2 -> Version 5.2 Updated 1/27/22 | L2: Status (Unlocked) | M2: Not Yet Compared
L3: Field Text Default | M3: Not Yet Compared
B4: Instructions
B5: Click the "Run Comparison Now" button below to validate that the below referenced fields have matching values between the project's AHP Application and this Rental AHP Application Financial Workbook.
B7: Comparison Last Executed | C7: =COMPARISON_LAST_RUN -> Not Yet Compared
B9: Field | C9: Financial Workbook Value | D9: EFORM_FIELD_NAME | E9: EFORM_VALUE_IF_BLANK | F9: EFORM_FIELD_VALUE | G9: AHP Application Value | H9: Match?
B10: Direct Subsidy Requested | C10: =IF('Sources & Uses of Funds'!E94="",0,'Sources & Uses of Funds'!E94) -> 0 | D10: DIR_SUB_AMT | E10: 0 | G10: =IF(F10="","",F10) ->  | H10: =IF(I10="","",IF(IFERROR(DATEVALUE(TEXT(COMPARISON_LAST_RUN,"mm/dd/yyy")),0)<=0,COMPARISON_DEFAULT_STATUS,IF(I10=2,"Yes","No"))) -> Not Yet Compared | I10: =IF(C10="","",IF(IFERROR(DATEVALUE(TEXT(COMPARISON_LAST_RUN,"mm/dd/yyy")),0)<=0,1,IF(IF(ISBLANK(C10),0,C10)=IF(ISBLANK(G10),0,G10),2,0))) -> 1
B11: Total Number of Units in Project | C11: =IF(Targeting!A47="",0,Targeting!A47) -> 0 | D11: TOTAL_UNITS | E11: 0 | H11: Not Yet Compared | I11: 1
B12: Total Income-Restricted Units | C12: =IF(Targeting!A41="",0,Targeting!A41) -> 0 | D12: INCOME_RESTRICTED_UNITS | E12: 0 | H12: Not Yet Compared | I12: 1
B13: Total Non-Income Restricted Units | C13: =SUM(Targeting!A43:A46) -> 0 | D13: NONINCOME_RESTRICTED_UNITS | E13: 0 | H13: Not Yet Compared | I13: 1
B14: Manager's Units | C14: =SUM(Targeting!A42:A43) -> 0 | D14: MANAGER_UNITS | E14: 0 | H14: Not Yet Compared | I14: 1
B15: Number of Homeless Units | C15: =IF(Targeting!A49="",0,Targeting!A49) -> 0 | D15: HOMELESS_UNITS | E15: 0 | H15: Not Yet Compared | I15: 1
B16: Total Number of Special Needs Units | C16: =IF(Targeting!A50="",0,Targeting!A50) -> 0 | D16: SPECIALNEEDS_TOTAL_UNITS | E16: 0 | H16: Not Yet Compared | I16: 1
B17: Targeting Weighted Average | C17: =IF(Targeting!A52="",0,ROUND(Targeting!A52,7)) -> 0 | D17: [CALCULATED] | E17: 0 | F17: =IF(F12="","",ROUND(IFERROR(SUMPRODUCT(F18:F29,F30:F41)/SUM(F18:F29),E17),7)) ->  | G17: =IF(F17="","",F17) ->  | H17: =IF(I17="","",IF(IFERROR(DATEVALUE(TEXT(COMPARISON_LAST_RUN,"mm/dd/yyy")),0)<=0,COMPARISON_DEFAULT_STATUS,IF(I17=2,"Yes","No"))) -> Not Yet Compared | I17: =IF(C17="","",IF(IFERROR(DATEVALUE(TEXT(COMPARISON_LAST_RUN,"mm/dd/yyy")),0)<=0,1,IF(IF(ISBLANK(C17),0,C17)=IF(ISBLANK(G17),0,G17),2,0))) -> 1
B18: INCOME_RESTRICTED_AMI_TABLE | C18: N/A | D18: INCOME_RESTRICTED_TBL_ROW1_UNITS | E18: 0 | G18: =IF(F18="","",F18) -> 
B19: INCOME_RESTRICTED_AMI_TABLE | C19: N/A | D19: INCOME_RESTRICTED_TBL_ROW2_UNITS | E19: 0
B20: INCOME_RESTRICTED_AMI_TABLE | C20: N/A | D20: INCOME_RESTRICTED_TBL_ROW3_UNITS | E20: 0
B21: INCOME_RESTRICTED_AMI_TABLE | C21: N/A | D21: INCOME_RESTRICTED_TBL_ROW4_UNITS | E21: 0
B22: INCOME_RESTRICTED_AMI_TABLE | C22: N/A | D22: INCOME_RESTRICTED_TBL_ROW5_UNITS | E22: 0
B23: INCOME_RESTRICTED_AMI_TABLE | C23: N/A | D23: INCOME_RESTRICTED_TBL_ROW6_UNITS | E23: 0
B24: INCOME_RESTRICTED_AMI_TABLE | C24: N/A | D24: INCOME_RESTRICTED_TBL_ROW7_UNITS | E24: 0
B25: INCOME_RESTRICTED_AMI_TABLE | C25: N/A | D25: INCOME_RESTRICTED_TBL_ROW8_UNITS | E25: 0
B26: INCOME_RESTRICTED_AMI_TABLE | C26: N/A | D26: INCOME_RESTRICTED_TBL_ROW9_UNITS | E26: 0
B27: INCOME_RESTRICTED_AMI_TABLE | C27: N/A | D27: INCOME_RESTRICTED_TBL_ROW10_UNITS | E27: 0
B28: INCOME_RESTRICTED_AMI_TABLE | C28: N/A | D28: INCOME_RESTRICTED_TBL_ROW11_UNITS | E28: 0
B29: INCOME_RESTRICTED_AMI_TABLE | C29: N/A | D29: INCOME_RESTRICTED_TBL_ROW12_UNITS | E29: 0
B30: INCOME_RESTRICTED_AMI_TABLE | C30: N/A | D30: INCOME_RESTRICTED_TBL_ROW1_AMI | E30: 0
B31: INCOME_RESTRICTED_AMI_TABLE | C31: N/A | D31: INCOME_RESTRICTED_TBL_ROW2_AMI | E31: 0
B32: INCOME_RESTRICTED_AMI_TABLE | C32: N/A | D32: INCOME_RESTRICTED_TBL_ROW3_AMI | E32: 0
B33: INCOME_RESTRICTED_AMI_TABLE | C33: N/A | D33: INCOME_RESTRICTED_TBL_ROW4_AMI | E33: 0
B34: INCOME_RESTRICTED_AMI_TABLE | C34: N/A | D34: INCOME_RESTRICTED_TBL_ROW5_AMI | E34: 0
B35: INCOME_RESTRICTED_AMI_TABLE | C35: N/A | D35: INCOME_RESTRICTED_TBL_ROW6_AMI | E35: 0
B36: INCOME_RESTRICTED_AMI_TABLE | C36: N/A | D36: INCOME_RESTRICTED_TBL_ROW7_AMI | E36: 0
B37: INCOME_RESTRICTED_AMI_TABLE | C37: N/A | D37: INCOME_RESTRICTED_TBL_ROW8_AMI | E37: 0
B38: INCOME_RESTRICTED_AMI_TABLE | C38: N/A | D38: INCOME_RESTRICTED_TBL_ROW9_AMI | E38: 0
B39: INCOME_RESTRICTED_AMI_TABLE | C39: N/A | D39: INCOME_RESTRICTED_TBL_ROW10_AMI | E39: 0
B40: INCOME_RESTRICTED_AMI_TABLE | C40: N/A | D40: INCOME_RESTRICTED_TBL_ROW11_AMI | E40: 0
B41: INCOME_RESTRICTED_AMI_TABLE | C41: N/A | D41: INCOME_RESTRICTED_TBL_ROW12_AMI | E41: 0
B42: Households Requiring Large Units | C42: =Targeting!A53 -> 0 | D42: LARGE_UNITS | E42: 0 | H42: =IF(I42="","",IF(IFERROR(DATEVALUE(TEXT(COMPARISON_LAST_RUN,"mm/dd/yyy")),0)<=0,COMPARISON_DEFAULT_STATUS,IF(I42=2,"Yes","No"))) -> Not Yet Compared | I42: =IF(C42="","",IF(IFERROR(DATEVALUE(TEXT(COMPARISON_LAST_RUN,"mm/dd/yyy")),0)<=0,1,IF(IF(ISBLANK(C42),0,C42)=IF(ISBLANK(G42),0,G42),2,0))) -> 1

Sheet Data Import Summary (hidden)
A1: IRIS Tab | B1: Question | C1: ID | D1: Financial Workbook Worksheet | E1: Cell | F1: Additional field name details | G1: Type | H1: Required | I1: Validation | J1: Export? | K1: Link to Workbook | L1: DB Field Name / Dynamic Framework Question ID | M1: DB Field Type | N1: Dynamic Framework TABLE.COLUMN_NAME | O1: Additional Notes
A2: Basic Review | B2: Sources = Uses | D2: Sources & Uses of Funds | E2: O94 | G2: Number | H2: Y | I2: If cell =0 then "Yes", if not equal to zero then "No". | J2: Yes | K2: =IF('Sources & Uses of Funds'!$O$94=0,1,0) -> 1
A3: Basic Review | B3: Cash Flow | D3: 15-Year Op Pro Forma | E3: F47:T47 | G3: Number | H3: Y | I3: If sum of cells is >=0 then "Yes", if not then "No". | J3: Yes | K3: =SUM('15-Year Op Pro Forma'!F47:T47) -> 0
A4: Basic Review | B4: 20% VLI | D4: Targeting Worksheet | E4: A48 | G4: Percentage | H4: Y | I4: If cell is >=20% then "Yes", if not then "No". | J4: Yes | K4: =Targeting!$A$48 -> 
A5: Sources of Funds | B5: HOME | D5: Sources of Funds Summary | E5: A11 | G5: Drop-down ( Yes, No) | H5: N, but one cell must say "Yes". | I5: If cell = "Yes" then check, if other value, then blank. | J5: Yes if cell = "Yes" | K5: ='Sources of Funds Summary'!$A$11 -> 0
A6: Sources of Funds | B6: CDBG | D6: Sources of Funds Summary | E6: A12 | G6: Drop-down ( Yes, No) | H6: N, but one cell must say "Yes". | I6: If cell = "Yes" then check, if other value, then blank. | J6: Yes if cell = "Yes" | K6: ='Sources of Funds Summary'!$A$12 -> 0
A7: Sources of Funds | B7: FHA | D7: Sources of Funds Summary | E7: A13 | G7: Drop-down ( Yes, No) | H7: N, but one cell must say "Yes". | I7: If cell = "Yes" then check, if other value, then blank. | J7: Yes if cell = "Yes" | K7: ='Sources of Funds Summary'!$A$13 -> 0
A8: Sources of Funds | B8: LIHTC | D8: Sources of Funds Summary | E8: A14 | G8: Drop-down ( Yes, No) | H8: N, but one cell must say "Yes". | I8: If cell = "Yes" then check, if other value, then blank. | J8: Yes if cell = "Yes" | K8: ='Sources of Funds Summary'!$A$14 -> 0
A9: Sources of Funds | B9: Other Federal Housing | D9: Sources of Funds Summary | E9: A15 | G9: Drop-down ( Yes, No) | H9: N, but one cell must say "Yes". | I9: If cell = "Yes" then check, if other value, then blank. | J9: Yes if cell = "Yes" | K9: ='Sources of Funds Summary'!$A$15 -> 0
A10: Sources of Funds | B10: Tax Exempt | D10: Sources of Funds Summary | E10: A16 | G10: Drop-down ( Yes, No) | H10: N, but one cell must say "Yes". | I10: If cell = "Yes" then check, if other value, then blank. | J10: Yes if cell = "Yes" | K10: ='Sources of Funds Summary'!$A$16 -> 0
A11: Sources of Funds | B11: State Funds | D11: Sources of Funds Summary | E11: A17 | G11: Drop-down ( Yes, No) | H11: N, but one cell must say "Yes". | I11: If cell = "Yes" then check, if other value, then blank. | J11: Yes if cell = "Yes" | K11: ='Sources of Funds Summary'!$A$17 -> 0
A12: Sources of Funds | B12: Local Govt | D12: Sources of Funds Summary | E12: A18 | G12: Drop-down ( Yes, No) | H12: N, but one cell must say "Yes". | I12: If cell = "Yes" then check, if other value, then blank. | J12: Yes if cell = "Yes" | K12: ='Sources of Funds Summary'!$A$18 -> 0
A13: Sources of Funds | B13: Non-Govt | D13: Sources of Funds Summary | E13: A19 | G13: Drop-down ( Yes, No) | H13: N, but one cell must say "Yes". | I13: If cell = "Yes" then check, if other value, then blank. | J13: Yes if cell = "Yes" | K13: ='Sources of Funds Summary'!$A$19 -> 0
A14: Sources of Funds | B14: Member Perm Loans | D14: Sources of Funds Summary | E14: A20 | G14: Drop-down ( Yes, No) | H14: N, but one cell must say "Yes". | I14: If cell = "Yes" then check, if other value, then blank. | J14: Yes if cell = "Yes" | K14: ='Sources of Funds Summary'!$A$20 -> 0
A15: Sources of Funds | B15: Other | D15: Sources of Funds Summary | E15: A21 | G15: Drop-down ( Yes, No) | H15: N, but one cell must say "Yes". | I15: If cell = "Yes" then check, if other value, then blank. | J15: Yes if cell = "Yes" | K15: ='Sources of Funds Summary'!$A$21 -> 0
A16: Project Data | B16: Total Development Cost | D16: Sources & Uses of Funds | E16: D94 | G16: Number | H16: Y | I16: =Value in cell | J16: Yes | K16: ='Sources & Uses of Funds'!$D$94 -> 0
A17: Project Data | B17: Committed Sources | D17: Sources & Uses of Funds | E17: O109 | G17: Number | H17: Y | I17: =Value in cell | J17: Yes | K17: ='Sources & Uses of Funds'!$O$109 -> 0
A18: Project Data | B18: 3 Bedroom or More | D18: Targeting Worksheet | E18: E19:E39 | G18: Number | H18: Y | I18: If any cell is equal to or greater than 3, then box should be checked, if not, blank. | J18: Yes, if any cell is >= 3. | K18: =IF(Targeting!$AC$41>0,1,0) -> 0 | O18: see line 46 and 47. Ops/TSS to check which is necessary
A19: Benchmarks | B19: Avg Bedrooms per Unit | D19: Targeting Worksheet | E19: A51 | G19: Number | H19: Y | I19: =Value in cell | J19: Yes | K19: =Targeting!$A$51 -> 
A21: Benchmarks | B21: Const Cost per SF for project | D21: Benchmarks | E21: B11 | G21: Currency | H21: Y | I21: =Value in cell | J21: Yes | K21: =Benchmarks!$B$11 -> 0
A22: Benchmarks | B22: Building Type | D22: Sources & Uses of Funds | E22: C8 | G22: Drop-down (Apartments, Single Family Homes, Townhomes) | H22: Y | I22: =Value in cell | J22: Yes | K22: ='Sources & Uses of Funds'!$C$8 -> 0
A23: Benchmarks | B23: Const/Rehab Contingency | D23: Benchmarks | E23: B12 | G23: Percentage | H23: Y | I23: =Value in cell | J23: Yes | K23: =Benchmarks!$B$12 -> 0
A24: Benchmarks | B24: Rep Reserve Amount | D24: Benchmarks | E24: B16 | G24: Currency | H24: Y | I24: =Value in cell | J24: Yes | K24: =Benchmarks!$B$16 -> 0
A25: Benchmarks | B25: % Over Benchmark (ops) | D25: Benchmarks | E25: B17 and D18 | G25: Currency | H25: Y | I25: If E16 ="No" then =(Value in B16- Value in D17)/Value in D17. Otherwise zero. | J25: Yes | K25: =IF(Benchmarks!E17="No", (Benchmarks!B17-Benchmarks!D18)/Benchmarks!D18, 0) -> 0
A26: Benchmarks | B26: Max Op Reserve | D26: Benchmarks | E26: D18 | G26: Currency | H26: Y | I26: =Value in cell | J26: Yes | K26: =Benchmarks!$D$18 -> 0
A27: Benchmarks | B27: Developer Fee Percentage | D27: Benchmarks | E27: B20 | G27: Percentage | H27: Y | I27: =Value in cell | J27: Yes | K27: =Benchmarks!$B$20 -> 0
A28: Benchmarks | B28: Soft cost contingency % | D28: Benchmarks | E28: B21 | G28: Percentage | H28: Y | I28: =Value in cell | J28: Yes | K28: =Benchmarks!$B$21 -> 0
A29: Benchmarks | B29: Rate difference | D29: Benchmarks | E29: B23 | G29: Percentage | H29: Y | I29: =Value in cell | J29: Yes | K29: =Benchmarks!$B$23 -> 0%
A30: Benchmarks | B30: Vacancy Residential | D30: Benchmarks | E30: B24 | G30: Percentage | H30: Y | I30: =Value in cell | J30: Yes | K30: =Benchmarks!$B$24 -> 
A31: Benchmarks | B31: Vacancy Commercial | D31: Benchmarks | E31: B28 | G31: Percentage | H31: Y | I31: =Value in cell if cell has a value or zero. | J31: Yes | K31: =Benchmarks!$B$28 -> 
A32: Benchmarks | B32: Mgmt Fee per unit per month | D32: Benchmarks | E32: B29 | G32: Currency | H32: Y | I32: =Value in cell | J32: Yes | K32: =Benchmarks!$B$29 -> $0
A33: Benchmarks | B33: Oper res/unit/year | D33: Benchmarks | E33: B30 | G33: Currency | H33: Y | I33: =Value in cell | J33: Yes | K33: =Benchmarks!$B$30 -> $0
A34: Benchmarks | B34: Rep res/unit/year | D34: Benchmarks | E34: B31 | G34: Currency | H34: Y | I34: =Value in cell | J34: Yes | K34: =Benchmarks!$B$31 -> $0
A35: Benchmarks | B35: Op Cost PUPY | D35: Benchmarks | E35: B32 | G35: Currency | H35: Y | I35: =Value in cell | J35: Yes | K35: =Benchmarks!$B$32 -> $0
A36: Benchmarks | B36: DSCR | D36: Benchmarks | E36: B34 | G36: Number | H36: N | I36: =Value in cell if cell has a value or zero. | J36: Yes | K36: =Benchmarks!$B$34 -> 
A37: Benchmarks | B37: Year 1 cash flow | D37: Benchmarks | E37: B35 | G37: Percentage | H37: Y | I37: =Value in cell | J37: Yes | K37: =Benchmarks!$B$36 -> 0
A38: Benchmarks | B38: Year 1-5 cash | D38: Benchmarks | E38: B37 | G38: Currency | H38: Y | I38: =Value in cell | J38: Yes | K38: =Benchmarks!$B$37 -> 0
A39: Benchmarks | B39: PM Fees | D39: Benchmarks | E39: B38 | G39: Currency | H39: Y | I39: =Value in cell | J39: Yes | O39: Benchmark removed 2022
A40: Benchmarks | B40: Term | D40: Benchmarks | E40: B39 | G40: Number | H40: N | I40: =Value in cell if cell has a value or zero. | J40: Yes | K40: =Benchmarks!$B$39 -> 0
A41: Benchmarks | B41: Interest Rate | D41: Benchmarks | E41: B40 | G41: Percentage | H41: N | I41: =Value in cell if cell has a value or zero. | J41: Yes | K41: =Benchmarks!$B$40 -> 0
A42: Application Info | B42: Subsidy Requested | D42: Sources & Uses of Funds | E42: E94 | G42: Number | H42: Y | I42: =Value in cell | J42: No | K42: ='Sources & Uses of Funds'!$E$94 -> 0
A43: Project Data | B43: Square Footage | D43: Sources & Uses of Funds | E43: L4 | G43: Number | H43: Y | I43: =Value in cell | J43: Yes | K43: ='Sources & Uses of Funds'!$L$4 -> 0
A44: Benchmarks | B44: Total construction hard costs | D44: Benchmarks | E44: B10 | G44: Currency | H44: Y | I44: =Value in cell | J44: Yes | K44: =Benchmarks!$B$10 -> 
A45: Benchmarks | B45: Capitalized Operating Reserve (actual number) | D45: Benchmarks | E45: B17 | G45: Currency | H45: Y | I45: =Value in cell | J45: Yes | K45: =Benchmarks!$B$17 -> 0
A46: Scoring | B46: Households Requiring Large Units | D46: Targeting | E46: A53 | G46: Number | H46: Y | I46: =Value in cell | J46: Yes | K46: =Targeting!$A$53 -> 0 | O46: New for 2021
A47: Scoring | B47: Non-income restricted large units | D47: Targeting | E47: A45 | G47: Number | H47: N | I47: =Value in cell | J47: Yes if cell = "Yes" | K47: =Targeting!$A$45 -> 0 | O47: Ops/TSS to check if necessary

Sheet Version Control (hidden)
A1: AHP Application Financial Workbook Changes Log
A3: Updated | B3: 2022-01-12
A4: By | B4: Rose Wirtz
A7: Financial Workbook | B7: Version | C7: Tab | D7: Description of Change from Previous Version | E7: Completed by, date | F7: Approver
A8: Rental | B8: 5 | C8: All tabs | D8: New FHLBSF logo and version number (5.0)
A9: Rental | B9: 5 | C9: Targeting | D9: Locked Homeless, Special Needs, and Bedrooms per Unit cells so only other acceptable input than the drop-down choices is 0
A10: Rental | B10: 5 | C10: Sources & Uses of Funds | D10: Added "Pct of Funds" column for easier analysis by feasbility analyst
A11: Rental | B11: 5 | C11: 15-Year Op Pro Forma | D11: Added "Pct of Year 1 Total Expenses" column for easier analysis by feasbility analyst
A12: Rental | B12: 5 | C12: 15-Year Commercial Op Pro Forma | D12: Added "Pct of Year 1 Total Expenses" column for easier analysis by feasbility analyst
A13: Rental | B13: 5 | C13: Benchmarks | D13: Adjusted formula in B10 (Construction costs per square foot calculation). Calculation now factors in Site Work in the Sources & Uses of Funds tab
A14: Rental | B14: 5 | C14: Benchmarks | D14: Line 11 added for Total construction hard costs. Formula calculates all costs under "New Construction/Rehab" except for Environmental Remediation and Hard Cost Contingency.
A15: Rental | B15: 5 | C15: Benchmarks | D15: Formulas fixed for residential vacancy/bad debt rate (E24) and commercial vacancy and bad debt rate (E28) so that errors are no longer shown
A16: Rental | B16: 5 | C16: Benchmarks | D16: 3 decimal places for B33, C33, D33 (debt service coverage ratio)
A17: Rental | B17: 5 | C17: Benchmarks | D17: Formula fixed for term of permanent financing (B39). MINIFS formula introduced so that the workbook finds the lowest hard debt term from the Sources & Uses of Funds tab
A18: Rental | B18: 5 | C18: Benchmarks | D18: Formula fixed for term of interest rate assumptions (B40). MAXIFS formula introduced so that the workbook finds the highest hard-debt interest rate from the Sources & Uses of Funds tab
A19: Rental | B19: 5 | C19: Benchmarks | D19: Any "No" response in Column E is now highlighted yellow (Conditional Formatting)
A20: Rental | B20: 5 | C20: Data Import Summary | D20: Import square footage figure from Sources & Uses of Funds
A21: Rental | B21: 5 | C21: Data Import Summary | D21: Import total construction hard costs from Benchmarks tab
A22: Rental | B22: 5 | C22: Data Import Summary | D22: Import the actual capitalized operating reserve calculation from Benchmarks
A23: Rental | B23: 5 | C23: Data Import Summary | D23: All Benchmark cell references moved one line down (highlighted)
A24: Rental | B24: 5 | C24: All tabs | D24: 1/21/20 - removed "Edit Scenarios" and "Edit Objects" permission from most tabs
A26: Rental | B26: 5.1 | C26: Targeting | D26: Added Units with 3+ bedrooms cell | E26: J. Tsang 11/13/20
A27: Rental | B27: 5.1 | C27: Large Units | D27: Added Households Requiring Large Units tab and score calculation | E27: J. Tsang 11/13/20
A28: Rental | B28: 5.1 | C28: AHP Application Comparison | D28: Macro check to include large units check - Tappan to add | E28: J. LeSauvage (Tappan) 12/16/20
A29: Rental | B29: 5.1 | C29: Benchmarks - Hard debt term - lowest | D29: Formula fixed for term of permanent financing (B39). Replaced MINIFS formula as it is not available to non-Office 365 users (please check logic) | E29: J. Tsang 11/13/20, formula tested 11/20/20 R. Wirtz
A30: Rental | B30: 5.1 | C30: Benchmarks - Interest rate - highest | D30: Formula fixed for term of interest rate assumptions (B40). Replaced MAXIFS formula as it is not available to non-Office 365 users (please check logic) | E30: J. Tsang 11/13/20, formula tested 11/20/20 R. Wirtz
A31: Rental | B31: 5.1 | C31: Subsidy per Unit | D31: Range increased to $15,000-$40,000 | E31: J. Tsang 11/13/20
A32: Rental | B32: 5.1 | C32: All tabs | D32: New version number (5.1) | E32: R. Wirtz 11/19/20
A33: Rental | B33: 5.1 | C33: Sources & Uses of Funds | D33: Unlocked debt service payment cell for one column to allow for interest-only payments or HCD mandatory debt fee payments | E33: R. Wirtz 11/20/20
A34: Rental | B34: 5.1 | C34: Workbook Instructions & Notes | D34: Added note to explain new ability to put interest-only debt payments in sources & uses tab | E34: R. Wirtz 11/20/20
A35: Rental | B35: 5.1 | C35: Targeting | D35: Adjusted formatting for 30% rent test so that it displays "Pass" if total rent received and rental subsidy are both 0 | E35: R. Wirtz 12/2/20
A36: Rental | B36: 5.1 | C36: Benchmarks | D36: Adjusted formatting to make sure that if net cash flow in year 1 is $0, a percentage should not be calculated | E36: R. Wirtz 11/20/20
A37: Rental | B37: 5.1 | C37: Targeting Self-Score | D37: Fixed cell C17. Cell references Targeting!M19..M296, however, correct reference should be Targeting!N19..N296 | E37: R. Wirtz 11/20/20
A38: Rental | B38: 5.1 | C38: Targeting | D38: Adjusted cells D19-D22 to mimic D23-D39/fixed column D to correct avg. BR calculation | E38: R. Wirtz 11/20/20
A39: Rental | B39: 5.1 | C39: Benchmarks | D39: Deleted"site work" from description of CCPSF | E39: R. Wirtz 11/20/20
A40: Rental | B40: 5.1 | C40: Workbook Instructions & Notes | D40: Made clear that soft debt terms do not need to be input into financial worksheets - bolded font | E40: R. Wirtz 11/20/20
A41: Rental | B41: 5.1 | C41: Targeting | D41: Changed AMI years to reference 2021 and 2020 instead of 2020 and 2019 | E41: R. Wirtz 11/20/20
A42: Rental | B42: 5.1 | C42: Sources & Uses of Funds | D42: Fixed gray formatting for loan terms section for when "soft" debt is selected in row 97 | E42: R. Wirtz 12/2/20
A43: Rental | B43: 5.1 | C43: Operating Pro Forma | D43: Removed formula from F33 to allow users to input their own mandatory debt fee payment amounts | E43: R. Wirtz 12/2/20
A44: Rental | B44: 5.1 | C44: Operating Pro Forma | D44: Added back in formula to trend management fee in line 18 | E44: R. Wirtz 12/2/20
A45: Rental | B45: 5.1 | C45: Operating Pro Forma | D45: Added ROUNDDOWN formula for cell B35 - now, does not display anything in the cell if net cash flow is less than 0.1% | E45: R. Wirtz 12/2/20
A46: Rental | B46: 5.1 | C46: AHP Application Comparison | D46: Added lines for large units and subsidy per unit, Jeff to add the macros, see above | E46: R. Wirtz 12/2/20
A47: Rental | B47: 5.1 | C47: All tabs | D47: Hid Subsidy/Unit and Households Requiring Large Units tabs | E47: R. Wirtz 12/2/20
A48: Rental | B48: 5.1 | C48: Data Import Summary | D48: Added row to import data for # of Households Requiring Large Units | E48: J. Tsang 12/8/20
A49: Rental | B49: 5.1 | C49: Workbook Instructions & Notes | D49: Removed section on Subsidy per Unit tab | E49: R. Wirtz 12/30/20
A50: Rental | B50: 5.1 | C50: All tabs | D50: Updated date to 1/26, when applications are published | E50: R. Wirtz 12/30/20
A53: Rental | B53: 5.2 | C53: All tabs | D53: New version number (5.2) | E53: R. Wirtz 12/6/21
A54: Rental | B54: 5.2 | C54: All tabs | D54: Updated security settings for objects (logo, pictures, etc) | E54: R. Wirtz 12/7/21
A55: Rental | B55: 5.2 | C55: Workbook Instructions and Notes | D55: Under Targeting, instructed users to input only homeless or special needs units, not both (input whichever they are seeking points for) | E55: R. Wirtz 12/6/21
A56: Rental | B56: 5.2 | C56: Workbook Instructions and Notes | D56: Under Sources & Uses, removed item #9 re: COSR | E56: R. Wirtz 12/6/21
A57: Rental | B57: 5.2 | C57: Workbook Instructions and Notes | D57: Under Sources & Uses, made clear that all commercial costs go in line 93 | E57: R. Wirtz 12/6/21
A58: Rental | B58: 5.2 | C58: Workbook Instructions and Notes | D58: Under General, added language re: Bank has discretion to throw out applications with errors | E58: R. Wirtz 12/6/21
A59: Rental | B59: 5.2 | C59: Workbook Instructions and Notes | D59: Under Sources & Uses, matched language to disbursement wkbk re: land value, deferred interest, and waived fees (now allowed in budget) | E59: R. Wirtz 12/6/21
A60: Rental | B60: 5.2 | C60: Targeting | D60: Added separate cell for non-income-restricted 3BR+ units; made total 3BR cell include these units as well | E60: R. Wirtz 12/6/21
A61: Rental | B61: 5.2 | C61: Targeting | D61: Added new row with cells for zip code and county dropdown | E61: R. Wirtz 12/6/21
A62: Rental | B62: 5.2 | C62: Targeting | D62: Updated AMI years to 2022 and 2021 | E62: R. Wirtz 12/6/21
A63: Rental | B63: 5.2 | C63: Workbook Comments | D63: Added new tab for users to include comments/details on sources & uses, op pro forma, commercial pro forma | E63: R. Wirtz 12/6/21
A64: Rental | B64: 5.2 | C64: Workbook Comments | D64: Add instructions for users on how to use this tab | E64: R. Wirtz 12/10/21
A65: Rental | B65: 5.2 | C65: Benchmarks | D65: Added RSMeans (cost estimates) tab to workbook, updated formulas to auto-calculate deviation based on zip code in Targeting tab. Adjusted CCPSF language to match IP update | E65: R. Wirtz 12/7/21
A66: Rental | B66: 5.2 | C66: Cost Estimates by City Zip | D66: See above - added new RSMeans (cost estimates) tab to enable CCPSF auto-calculation | E66: R. Wirtz 12/7/21
A67: Rental | B67: 5.2 | C67: Benchmarks | D67: Updated developer fee benchmark to 15% from 12%. Removed developer fee from calculation of total residential development costs in formula | E67: R. Wirtz 12/6/21
A68: Rental | B68: 5.2 | C68: Benchmarks | D68: Bifurcated benchmark to include new $10K limit for Bay Area and LA counties (tied to new county dropdown in Targeting tab) | E68: R. Wirtz 12/7/21
A69: Rental | B69: 5.2 | C69: Benchmarks | D69: OpEx PUPY: add asterisk for Bay Area and LA Metro | E69: R. Wirtz 12/10/21
A70: Rental | B70: 5.2 | C70: Benchmarks | D70: Removed partnership management fee benchmark | E70: R. Wirtz 12/6/21
A71: Rental | B71: 5.2 | C71: 15-Year Op Pro Forma | D71: See above - removed ability to include PM fee above the line | E71: R. Wirtz 12/6/21
A72: Rental | B72: 5.2 | C72: Workbook Instructions and Notes | D72: See above - clarified instructions to show PM fee as residual receipt payment only | E72: R. Wirtz 12/6/21
A73: Rental | B73: 5.2 | C73: Benchmarks | D73: Hard cost contingency 5% rounding - check for error | E73: N/A | F73: TBD - can't find error
A74: Rental | B74: 5.2 | C74: Subsidy per Unit Score | D74: Reduced total points from 12 to 7, adjusted formula | E74: R. Wirtz 12/6/21
A75: Rental | B75: 5.2 | C75: Households Requiring Lg. Units | D75: Removed tab | E75: R. Wirtz 12/6/21
A76: Rental | B76: 5.2 | C76: Data Import Summary | D76: Updated cash flow reference | E76: R. Wirtz 12/10/21
A77: Rental | B77: 5.2 | C77: Data Import Summary | D77: Updated 20% VLI reference | E77: R. Wirtz 12/10/21
A78: Rental | B78: 5.2 | C78: Data Import Summary | D78: 3BR count - include nonrestricted, so change reference? | E78: R. Wirtz 12/10/21
A79: Rental | B79: 5.2 | C79: Data Import Summary | D79: Updated reference for avg. br/unit | E79: R. Wirtz 12/10/21
A80: Rental | B80: 5.2 | C80: Data Import Summary | D80: Updated reference for CCPSF and total hard cost | E80: R. Wirtz 12/10/21
A81: Rental | B81: 5.2 | C81: Data Import Summary | D81: Updated reference for DSCR | E81: R. Wirtz 12/10/21
A82: Rental | B82: 5.2 | C82: Data Import Summary | D82: Removed formula for PM fee benchmark, strikethrough text and left note that benchmark is removed | E82: R. Wirtz 12/10/21
A83: Rental | B83: 5.2 | C83: Data Import Summary | D83: Updated reference for total 3BR count | E83: R. Wirtz 12/10/21
A84: Rental | B84: 5.2 | C84: Data Import Summary | D84: Added new line for non-income restricted 3BR | E84: R. Wirtz 12/10/21
A85: Rental | B85: 5.2 | C85: AHP Application Comparison | D85: Targeting Weighted Average not matching, rounding error - for Jeff | E85: OK
A86: Rental | B86: 5.2 | C86: All tabs | D86: New publish date when finalized | E86: R. Wirtz 1/12/22
A87: Rental | B87: 5.2 | C87: Cost Estimates by City Zip | D87: Replace tab with 2022 RS Means numbers when available | E87: R. Wirtz 1/6/22
